Cogmind - Beta 16.1 @@@ ROGUE MODE // 2026.02.21 @ 18:00:12 Player: FrigidRock Result: Destroyed by EQ-109 with Enhanced Gamma Rifle Performance ------------- Evolutions (9) 4500 Regions Visited (29) 5800 Robots Destroyed (375) 1875 Value Destroyed (28721) 28721 Prototype IDs (43) 860 Alien Tech Used (1) 200 Bonus (36106) 36106 TOTAL SCORE: 78062 Bonus ------- High Alert Combat Kills 5674 Follower Combat Kills 10945 Hunted by Unchained 500 Destroyed Unchained 1000 Entered Garrisons 2200 Used RIF Installer 6500 Met MAIN.C 5000 Destroyed MAIN.C Shell 5000 Friendly Fire -713 Cogmind --------- Core Integrity 0/1600 Matter 177/550 Energy 502/840 System Corruption 18% Temperature Warm (153) Movement Walking (110) Location -1/Command Parts ------- > --- POWER (2) -------- Zero-point Reactor > --- PROPULSION (6) --- Centrium Leg Centrium Leg Experimental Biometal Leg > --- UTILITY (13) ----- High-capacity Storage Unit Experimental Energy Well Matter Compressor Experimental Targeting Computer Experimental Core Analyzer > --- WEAPON (4) ------- Multirail > --- INVENTORY (20) --- Reinforced Quantum Reactor Improved Quantum Reactor Experimental Cooling System Small Matter Pod (0) Medium Matter Pod (100) Layered Light Armor Plating Experimental EM Shield Spacefold Activator Gamma Rifle Phase Gun Phase Gun Phase Gun Heavy Quantum Rifle Enhanced Nova Cannon Peak State ------------ > --- POWER ------------ Zero-point Reactor Zero-point Reactor > --- PROPULSION ------- Centrium Leg Centrium Leg Centrium Leg Centrium Leg Experimental Biometal Leg Experimental Biometal Leg > --- UTILITY ---------- Experimental Thermal Generator Advanced Heat Sink Experimental Heat Sink High-capacity Storage Unit Experimental Energy Well Experimental Targeting Computer Experimental Core Analyzer Precision Matter Filter Advanced Kinecellerator Layered Light Armor Plating Advanced Thermal Shield Experimental EM Shield Experimental System Purifier > --- WEAPON ----------- Heavy Quantum Rifle Enhanced Hardcell Cannon Graviton Cannon Graviton Cannon > --- INVENTORY -------- Quantum Reactor Reinforced Quantum Reactor Centrium Leg Advanced Heat Sink Advanced Heat Sink Matter Compressor Improved Medium Armor Plating Layered Light Armor Plating Improved Focal Shield Advanced Force Field Improved Point Defense System Spacefold Activator Gamma Rifle Phase Gun Phase Gun Phase Gun HERF Cannon Enhanced Hardcell Cannon [Rating: 225] Favorites ----------- Power Reinforced Quantum Reactor Engine Ion Engine Power Core Light Nuclear Core Reactor Reinforced Quantum Reactor Propulsion Centrium Leg Treads Improved Heavy Treads Leg Centrium Leg Wheel Armored Huge Wheel Flight Unit VTOL Module Utility High-capacity Storage Unit Device Improved Heat Sink Storage High-capacity Storage Unit Processor Experimental Targeting Computer Hackware Relay Coupler [Sentry] Protection Layered Light Armor Plating Artifact Spacefold Activator Weapon Railgun Energy Gun Cooled Pulse Rifle Energy Cannon Heavy Phase Cannon Ballistic Gun Railgun Ballistic Cannon Enhanced Hardcell Cannon Launcher Heavy Missile Launcher Special Weapon Improved Remote Datajack Piercing Weapon Enhanced Force Lance Build | -11 -10 -10 -10 -9 -8 -8 -8 -8 -7 -7 -6 -6 -6 -6 -5 -5 -5 -5 -4 -4 -3 -3 -2 -2 -2 -2 -2 -1 -1 ------- Run | Yrd Mat Min Exi Min Mat Gar Mat Gar Fac Gar Fac Gar Fac Gar Fac Gar Fac Gar Fac Gar Res Gar Res Qua Gar Sec Gar Acc Com Slots Evolved 18 | . . . . . 4 . . . 2 . 2 . . . 2 . . . 2 . 2 . 2 . . . . 2 . Power 1 | . . . . . . . . . . . . . . . 1 . . . . . . . . . . . . . . Propulsion 4 | . . . . . 2 . . . . . . . . . 1 . . . . . . . 1 . . . . . . Utility 11 | . . . . . 1 . . . 2 . 2 . . . . . . . 2 . 2 . 1 . . . . 1 . Weapon 2 | . . . . . 1 . . . . . . . . . . . . . . . . . . . . . . 1 . Parts Attached 332 | 9 11 6 . 4 15 4 1 23 11 19 13 11 23 24 3 32 4 10 1 9 13 14 5 . 12 4 5 2 44 Power 37 | 1 3 2 . . 2 1 1 4 1 2 . . . 2 . 3 . 1 . 1 2 4 1 . . . 2 . 4 Engine 8 | 1 3 1 . . 1 . 1 . . . . . . . . 1 . . . . . . . . . . . . . Core 13 | . . 1 . . 1 1 . 4 1 . . . . 1 . 2 . 1 . . . 1 . . . . . . . Reactor 16 | . . . . . . . . . . 2 . . . 1 . . . . . 1 2 3 1 . . . 2 . 4 Propulsion 66 | 2 5 2 . 3 4 1 . 5 . 6 . 1 1 8 1 10 . . . 1 3 4 1 . . . . 1 7 Treads 9 | 2 2 . . . . . . . . 3 . 1 . 1 . . . . . . . . . . . . . . . Leg 54 | . 3 2 . 3 4 1 . 5 . 3 . . . 5 1 10 . . . 1 3 4 1 . . . . 1 7 Wheel 1 | . . . . . . . . . . . . . 1 . . . . . . . . . . . . . . . . Hover . | . . . . . . . . . . . . . . . . . . . . . . . . . . . . . . Flight 2 | . . . . . . . . . . . . . . 2 . . . . . . . . . . . . . . . Utility 151 | 3 2 1 . . 3 . . 6 6 7 11 8 14 8 2 14 2 7 1 6 6 2 3 . 8 4 3 1 23 Device 43 | 2 1 1 . . 1 . . 2 1 2 3 . 6 1 1 6 . . . . 1 . . . . 1 . . 14 Storage 11 | 1 1 . . . 1 . . . 1 1 1 1 . . . 1 1 . . . . . . . . . . . 2 Processor 9 | . . . . . . . . . . . 1 . 4 . . 3 . . . . . . . . . . . . 1 Hackware 67 | . . . . . . . . 3 1 4 4 5 2 7 1 1 1 7 1 6 5 2 3 . 8 2 2 1 1 Protection 20 | . . . . . 1 . . 1 3 . 2 2 2 . . 3 . . . . . . . . . . 1 . 5 Artifact 1 | . . . . . . . . . . . . . . . . . . . . . . . . . . 1 . . . Weapon 78 | 3 1 1 . 1 6 2 . 8 4 4 2 2 8 6 . 5 2 2 . 1 2 4 . . 4 . . . 10 Energy Gun 22 | 3 . . . 1 1 . . 5 1 2 . . 4 1 . 1 . . . . . . . . . . . . 3 Energy Cannon 7 | . . . . . 3 . . . 1 1 . . . . . . 1 . . . . . . . . . . . 1 Ballistic Gun 22 | . 1 1 . . 2 1 . 1 1 . . 2 1 3 . 2 1 . . 1 . 2 . . 1 . . . 2 Ballistic Cannon 13 | . . . . . . . . . . . 1 . 2 . . . . . . . 2 2 . . 2 . . . 4 Launcher 3 | . . . . . . 1 . . 1 . . . 1 . . . . . . . . . . . . . . . . Special Weapon 10 | . . . . . . . . 2 . 1 1 . . 2 . 2 . 1 . . . . . . 1 . . . . Impact Weapon . | . . . . . . . . . . . . . . . . . . . . . . . . . . . . . . Slashing Weapon . | . . . . . . . . . . . . . . . . . . . . . . . . . . . . . . Piercing Weapon 1 | . . . . . . . . . . . . . . . . . . 1 . . . . . . . . . . . Special Melee Weapon . | . . . . . . . . . . . . . . . . . . . . . . . . . . . . . . Unidentified Prototypes 35 | . . . . . 2 . . . 2 1 . . 4 . . 7 . . . . 1 . . . . 1 . . 17 Corrupted Parts 1 | . . . . . . . . . . . . . . 1 . . . . . . . . . . . . . . . System Corruption 1 | . . . . . . . . . . . . . . 1 . . . . . . . . . . . . . . . Parts Lost 69 | . 4 3 . . . 1 . 12 1 1 . 4 4 3 . 4 . 1 . . 1 2 1 . . . . . 27 Power 6 | . . 1 . . . . . 3 . . . . . . . 1 . . . . . . . . . . . . 1 Propulsion 18 | . 3 1 . . . 1 . 4 . . . . 2 1 . 1 . 1 . . . . 1 . . . . . 3 Utility 23 | . . . . . . . . 1 1 . . 3 . 1 . 1 . . . . 1 1 . . . . . . 14 Weapon 22 | . 1 1 . . . . . 4 . 1 . 1 2 1 . 1 . . . . . 1 . . . . . . 9 Highest Loss Streak 14 | . 2 2 . . . 1 . 8 1 1 . 1 1 2 . 1 . 1 . . 1 1 1 . . . . . 14 To Critical Strikes 2 | . . . . . . . . . . . . 1 . . . . . . . . . . . . . . . . 1 Average Backups 16 | 1 8 9 10 9 11 14 14 14 14 15 17 16 17 17 18 19 19 18 17 19 19 18 19 20 19 20 18 16 17 Power . | . 1 1 2 1 2 2 2 1 1 . . . . . 1 1 1 . . . . 1 1 2 1 1 . . 1 Propulsion . | . 1 1 2 1 2 2 2 1 1 . 1 1 1 . 1 . 1 . . . . . . . . . . . 1 Utility 10 | . 2 2 3 3 3 5 7 8 9 11 12 10 10 12 11 12 12 13 14 16 13 11 12 12 12 15 15 13 9 Weapon 2 | . 2 3 3 3 4 4 3 1 2 1 2 1 3 2 2 2 2 1 . . 2 1 3 3 2 1 . . 4 Tool/Special . | . . . . . . . . . . . . . . . . . . . . . . . . . . . . . . Unused Backups 61 | . 7 . . 1 3 1 . 3 3 4 1 . 5 . 1 3 . 2 . 1 . 2 . . 5 2 . . 17 Power 6 | . 2 . . . . . . 1 1 1 . . . . . . . . . . . . . . . . . . 1 Propulsion 10 | . 3 . . . 1 . . 1 . 1 . . 1 . . . . . . . . 1 . . . . . . 2 Utility 28 | . . . . . 1 . . . 1 1 . . 2 . . 3 . 2 . 1 . 1 . . 5 2 . . 9 Weapon 15 | . 2 . . 1 1 1 . 1 1 1 1 . 2 . . . . . . . . . . . . . . . 4 Tool/Special 2 | . . . . . . . . . . . . . . . 1 . . . . . . . . . . . . . 1 Average Slot Usage (%) 93 | . 99 93 100 100 97 99 100 97 99 93 84 83 85 91 99 98 100 96 85 97 94 87 94 95 95 94 93 95 95 Engine 1 | . 14 6 . . 6 . 3 1 . . . . . . . . . . . . . . . . . . . . . Core 3 | . . 3 14 14 2 9 5 7 7 . . . . . 5 6 11 11 10 7 1 2 . . . . . . . Reactor 4 | . . . . . . . . . . 6 6 6 6 5 5 2 . . . 2 6 5 8 8 8 8 7 8 8 Treads 3 | . 16 16 . . . . . . . 5 13 13 11 2 . . . . . . . . . . . . . . . Leg 18 | . 10 10 28 28 34 35 36 35 30 18 . . . 10 28 28 29 26 21 24 18 11 20 21 21 21 20 20 21 Device 8 | . 14 14 14 14 10 9 9 7 9 1 10 6 4 4 2 9 6 1 . . 2 6 9 13 9 4 7 12 17 Storage 6 | . 14 14 14 14 9 9 9 9 7 7 6 6 6 6 5 5 5 5 5 5 4 4 4 4 4 4 4 4 6 Processor 6 | . . . . . . . . . . . 1 2 6 13 11 12 17 17 15 15 13 9 8 8 8 8 4 4 6 Hackware 16 | . . . . . . . . 6 11 24 20 22 20 15 13 4 4 13 16 22 27 27 28 26 29 32 30 31 14 Protection 3 | . . . . . 6 9 9 3 8 3 4 5 6 3 5 4 5 . . 3 1 2 . . . . 3 . 6 Energy Gun 5 | . 23 7 . 13 5 9 9 13 9 11 8 5 6 4 . . . . . . . . . . . . . . . Ballistic Gun 6 | . 4 19 28 14 10 14 10 10 6 1 2 2 8 10 11 14 14 8 3 6 2 1 4 4 6 4 4 4 2 Ballistic Cannon 2 | . . . . . . . . . . . 2 4 1 1 . . . . . . 4 8 4 1 4 6 5 7 10 Special Weapon 1 | . . . . . . . . 1 1 2 3 1 1 3 5 2 . 1 1 2 3 3 4 3 . 1 2 4 1 Peak Build Rating 225 | 7 8 12 10 13 41 41 40 41 51 77 90 90 88 82 91 128 131 132 113 139 151 159 172 173 175 176 176 188 225 Average Rating 97 | 5 7 7 10 12 38 39 38 34 49 65 85 82 83 71 88 94 124 115 112 130 144 148 158 171 171 166 170 179 196 On Entrance 88 | . 7 8 10 10 13 41 38 40 41 49 75 80 83 67 76 86 128 123 112 112 136 134 159 172 171 175 161 172 177 Avg Prop Armor Cover (%) 10 | . . . . . . . . . . 13 . . 15 7 . . . . . . . . . . . . 3 15 . Naked Turns . | . . . . . . . . . . . . . . . . . . . . . . . . . . . . . . Heaviest Build 183 | 15 20 20 20 21 55 44 44 45 55 89 94 97 93 94 80 97 87 87 83 91 122 116 123 127 130 131 146 154 183 Greatest Support 180 | 40 40 40 20 20 72 72 69 69 56 150 150 150 150 78 93 140 140 140 120 140 140 150 180 180 180 180 180 180 180 Greatest Overweight (x) 6 | 2 6 1 . 1 1 . . 1 . 2 . . 3 4 . 1 . . . . . . 1 . . . 1 1 1 Average Overweight (x) . | . . . . . . . . . . . . . . 1 . . . . . . . . . . . . . . . Largest Inventory Capacity 20 | 8 10 10 10 10 15 15 15 15 15 20 20 20 20 20 20 20 20 20 20 20 20 20 20 20 20 20 20 20 20 Average Capacity 18 | 7 9 10 10 10 14 15 15 15 15 16 20 20 20 20 20 20 20 20 20 20 20 20 20 20 20 20 20 20 20 Most Carried 20 | 2 10 10 10 10 15 15 15 15 15 20 20 20 20 20 20 20 20 20 18 20 20 20 20 20 20 20 20 19 20 Average Carried 16 | 1 8 9 10 9 11 14 14 14 14 16 18 17 18 17 18 19 19 18 17 19 18 18 19 20 19 20 18 16 17 Final Capacity 20 | 8 10 10 10 10 15 15 15 15 15 20 20 20 20 20 20 20 20 20 20 20 20 20 20 20 20 20 20 20 20 Final Carried 20 | 2 10 10 10 10 15 14 15 15 15 18 20 20 18 20 20 20 19 18 17 20 15 20 20 20 20 20 20 15 14 Class Distribution -------------------- 28% | Botlord-Gunner 27% | Botlord-Tank 7% | Bothacker-Tank 5% | Mutant 5% | Tank 5% | Botlord-Mutant 5% | Scavenger-Mutant 5% | Bothacker-Gunner 3% | Scavenger-Tank 3% | Commander-Gunner Dominant Class ---------------- Mutant | -10/Materials Mutant | -10/Mines Mutant | -10/Exiles Scavenger-Mutant | -9/Mines Tank | -8/Materials Tank | -8/Garrison Tank | -8/Materials Bothacker-Gunner | -8/Garrison Bothacker-Tank | -7/Factory Bothacker-Tank | -7/Garrison Botlord-Tank | -6/Factory Botlord-Tank | -6/Garrison Botlord-Tank | -6/Factory Botlord-Gunner | -6/Garrison Botlord-Gunner | -5/Factory Botlord-Gunner | -5/Garrison Botlord-Gunner | -5/Factory Botlord-Gunner | -5/Garrison Botlord-Mutant | -4/Factory Botlord-Gunner | -4/Garrison Botlord-Gunner | -3/Research Botlord-Gunner | -3/Garrison Botlord-Gunner | -2/Research Botlord-Mutant | -2/Quarantine Commander-Gunner | -2/Garrison Commander-Gunner | -2/Section 7 Botlord-Tank | -2/Garrison Botlord-Tank | -1/Access Botlord-Tank | -1/Command Resources | -11 -10 -10 -10 -9 -8 -8 -8 -8 -7 -7 -6 -6 -6 -6 -5 -5 -5 -5 -4 -4 -3 -3 -2 -2 -2 -2 -2 -1 -1 ----------- Run | Yrd Mat Min Exi Min Mat Gar Mat Gar Fac Gar Fac Gar Fac Gar Fac Gar Fac Gar Fac Gar Res Gar Res Qua Gar Sec Gar Acc Com Matter Collected 20244 | 280 171 82 . 267 490 511 68 830 335 718 318 1087 784 1513 134 1735 199 853 . 455 770 1783 182 . 1400 425 1262 512 3080 Remotely 80 | 80 . . . . . . . . . . . . . . . . . . . . . . . . . . . . . Salvage Created 18345 | 109 769 126 . 202 553 708 68 820 401 1678 488 558 1137 1519 154 1412 166 985 . 332 398 847 109 . 633 . 819 366 2988 Parts 739 | 5 45 8 . 9 32 33 2 59 24 54 24 23 45 83 6 57 4 57 . 20 15 22 12 . 22 . 24 8 46 Haulers Intercepted 4 | . 2 . . . 1 . . . . . . . . . . . 1 . . . . . . . . . . . . Recyclers Shooed 8 | . . . . 2 . . . . . . . . . . . . . . . . . . 1 . . . . . 5 Parts Field Recycled . | . . . . . . . . . . . . . . . . . . . . . . . . . . . . . . Retrieved Matter . | . . . . . . . . . . . . . . . . . . . . . . . . . . . . . . Parts Self-Destructed . | . . . . . . . . . . . . . . . . . . . . . . . . . . . . . . Prevented . | . . . . . . . . . . . . . . . . . . . . . . . . . . . . . . Parts Restored . | . . . . . . . . . . . . . . . . . . . . . . . . . . . . . . Kills | -11 -10 -10 -10 -9 -8 -8 -8 -8 -7 -7 -6 -6 -6 -6 -5 -5 -5 -5 -4 -4 -3 -3 -2 -2 -2 -2 -2 -1 -1 ------- Run | Yrd Mat Min Exi Min Mat Gar Mat Gar Fac Gar Fac Gar Fac Gar Fac Gar Fac Gar Fac Gar Res Gar Res Qua Gar Sec Gar Acc Com Combat Hostiles Destroyed 318 | . 20 5 . 5 8 18 1 33 6 18 8 13 13 35 . 24 1 17 . 7 6 19 4 . 12 . 11 5 29 Guns 193 | . 18 5 . 5 6 12 1 21 2 9 8 5 10 31 . 24 1 13 . 7 1 1 1 . 6 . 1 2 3 Cannons 86 | . . . . . 2 . . . 1 1 . 1 3 3 . . . 4 . . 5 18 3 . 6 . 10 3 26 AOE 37 | . . . . . . 6 . 12 3 8 . 7 . 1 . . . . . . . . . . . . . . . Classes Destroyed 24 | 2 6 . . . 3 2 . 2 . 1 . 1 . . . 2 . . . . . 1 . . 1 . . . 3 Worker 6 | . 2 . . . . . . . . . . . 1 . 1 . . . . . . . . . . . . . 2 Builder 1 | . . . . . 1 . . . . . . . . . . . . . . . . . . . . . . . . Tunneler 2 | 1 . . . . . . . . . . . . . . . . . . . . . . 1 . . . . . . Hauler 4 | . 2 . . . 1 . . . . . . . . . . . 1 . . . . . . . . . . . . Recycler 12 | 1 . . . . . . . . . . . . 3 . 1 . . . . . . . . . . . . . 7 Mechanic 1 | . . . . . . . . . . . . . . . . . . . . . . . . . . . . . 1 Operator 3 | . 1 . . . 1 . . . 1 . . . . . . . . . . . . . . . . . . . . Watcher 11 | . 3 . . . 1 . . . 2 . . . 1 . . . . . . . . . . . 1 . 1 1 1 Swarmer 106 | . 9 3 . . . 1 . 16 . 8 . 9 1 18 . 3 . 12 . 6 . 5 4 . 7 . 3 1 . Cutter 2 | . . . . . . . . . . 2 . . . . . . . . . . . . . . . . . . . Saboteur 2 | . . . . . . . . . . . . . . . . . . . . . . 1 . . . . . . 1 Grunt 111 | . 11 2 . 5 5 10 1 7 3 6 6 2 6 8 . 10 . 1 . 1 3 8 . . 3 . 8 2 3 Brawler 9 | . . . . . . 3 . . . . . . . 3 . 2 . . . . 1 . . . . . . . . Duelist 6 | . . . . . . 2 . . . 1 . . . . . . 1 . . . . . . . . . . 1 1 Protector 1 | . . . . . . . . . . . . . . . . 1 . . . . . . . . . . . . . Sentry 27 | . . . . . 2 1 . 1 2 1 . 1 2 2 . 2 . 6 . 1 . 4 . . 1 . . 1 . Demolisher 1 | . . . . . . . . . . . . . . . . . . . . . . . . . . . . . 1 Specialist 2 | . . . . . . . . 1 . . . . . 1 . . . . . . . . . . . . . . . Hunter 10 | . . . . . 1 1 . 2 . . . . . 2 . 1 . 1 . . . . . . . . 1 1 . Programmer 32 | . . . . . . . . 6 1 1 2 . 4 2 . 3 . 1 . . 1 3 . . 1 . 2 1 4 Behemoth 1 | . . . . . . . . . . . . 1 . . . . . . . . . . . . . . . . . Enhanced Q-Series 19 | . . . . . . . . . . . . . . . . . . . . . . . . . . . . . 19 Striker 1 | . . . . . . . . . . . . . . . . . . . . . . . . . 1 . . . . Executioner 2 | . . . . . . . . . . . . . . . . 2 . . . . . . . . . . . . . Guerrilla 1 | . . . . . . . . . . . . . . . . . . . . . . . . . . . . . 1 Best Kill Streak 9 | 2 5 3 . 3 4 5 1 8 4 5 3 4 3 7 2 7 1 4 . 5 3 9 3 . 5 . 2 2 5 Combat Bots Only 9 | . 3 3 . 3 3 5 1 8 3 5 3 4 3 7 . 7 1 4 . 5 3 9 2 . 5 . 2 2 5 Max Kills in Single Turn 4 | 1 2 1 . 1 1 2 1 4 3 3 1 2 2 2 1 2 1 2 . 2 2 1 1 . 2 . 1 2 2 Gunslinging 1 | . 1 . . . . . . 1 . . . . . 1 . 1 . . . 1 . . . . . . . . . Exploded 4 | . . . . . . 2 . 4 3 3 . 2 . 1 . . . . . . . . . . . . . . . Melee . | . . . . . . . . . . . . . . . . . . . . . . . . . . . . . . Uniques/NPCs Destroyed 2 | . . . . . . . . . . . . . . . . . . . . . 1 . . . . . . . 1 DW-4LL (-3/Research) MAIN.C Shell (-1/Command) Combat | -11 -10 -10 -10 -9 -8 -8 -8 -8 -7 -7 -6 -6 -6 -6 -5 -5 -5 -5 -4 -4 -3 -3 -2 -2 -2 -2 -2 -1 -1 -------- Run | Yrd Mat Min Exi Min Mat Gar Mat Gar Fac Gar Fac Gar Fac Gar Fac Gar Fac Gar Fac Gar Res Gar Res Qua Gar Sec Gar Acc Com Hostile Shots Fired 1930 | . 122 30 . 20 26 43 13 174 63 52 77 124 110 129 . 117 3 61 . 37 28 137 21 . 43 3 61 25 411 Missed 609 | . 26 5 . 3 12 8 3 55 24 20 31 50 35 40 . 30 2 11 . 10 9 43 19 . 12 1 17 10 133 Intercepted 4 | . . . . . . . . . . . . . . . . . . . . . . . . . . . . . 4 Deflected 1 | . . . . . . . . . . . . . . . . . . . . . . . . . . . . . 1 Hits 1321 | . 96 25 . 17 14 35 10 119 39 32 46 74 75 89 . 87 1 50 . 27 19 94 2 . 31 2 44 15 278 Melee 13 | . . . . . . 4 . . . 2 . . . . . . . . . 4 . 1 . . . . 2 . . Projectile 1308 | . 96 25 . 17 14 31 10 119 39 30 46 74 75 89 . 87 1 50 . 23 19 93 2 . 31 2 42 15 278 AOE 24 | . . . . . . . . . . 1 . . . . . 3 . . . . 1 . . . . . . . 19 Critical Strikes 54 | . . 1 . . . 2 1 6 . 1 2 2 2 1 . 7 . 1 . 2 1 5 . . 3 . 3 . 14 Part Disruptions 8 | . . . . . . . . . . . . . . . . . . . . . . 1 . . . . . 1 6 Damage Taken 24993 | . 916 267 . 221 228 647 161 1668 398 748 676 1013 1398 1317 . 1483 18 889 . 441 625 1849 192 . 473 79 785 257 8244 Core 3163 | . 142 8 . 56 . 35 . 193 16 31 63 22 127 138 . 240 . 129 . 27 14 205 . . 12 29 39 . 1637 Absorbed by Shields 4184 | . . . . . . . . . . . . . . 264 . 473 . 95 . 92 123 288 . . 454 12 321 156 1906 Redirected to Shielding 41 | . . . . . . . . . . . . . 41 . . . . . . . . . . . . . . . . Ignored by Resistances 1666 | . . . . . . . . . . . . . . . . . . . . . . . . . . . . . 1666 Regen/Repaired (Parts) 250 | . . . . . . . . . 35 . 56 . . . . . . . . 123 36 . . . . . . . . Core Remaining (%) 73 | 100 . . . 17 . . . 58 . 93 . . . 58 . . . 63 . 97 . 83 . . . . 94 . . Volleys Fired 1510 | 3 75 15 . 17 22 46 3 89 21 106 35 51 63 106 10 109 23 63 2 43 55 114 32 3 90 16 85 42 171 Largest 4 | 2 2 2 . 2 3 3 3 3 3 3 3 3 3 3 2 3 3 3 1 3 3 3 2 1 3 3 3 3 4 Hottest 262 | 100 100 70 . 85 240 113 105 145 183 164 108 120 220 175 70 105 103 160 7 158 137 157 93 7 151 151 151 151 262 Shots Fired 3100 | 6 150 29 . 34 66 124 9 195 46 228 70 94 136 212 14 214 45 125 2 61 77 209 43 3 165 20 147 69 507 Gun 1694 | 6 150 29 . 34 45 101 9 177 29 151 52 51 111 162 8 169 33 68 . 24 12 17 11 . 82 2 35 13 113 Cannon 947 | . . . . . 21 . . . 9 54 7 19 15 14 . . 5 38 . 12 27 140 11 . 65 6 100 32 372 Launcher 58 | . . . . . . 23 . 11 1 11 . 11 . 1 . . . . . . . . . . . . . . . Special 401 | . . . . . . . . 7 7 12 11 13 10 35 6 45 7 19 2 25 38 52 21 3 18 12 12 24 22 Kinetic 1802 | . 7 16 . 23 30 60 6 71 9 31 24 34 58 127 8 169 33 68 . 24 39 157 22 . 147 8 135 45 451 Thermal 750 | 6 143 13 . 11 36 41 3 106 20 166 19 32 42 35 . . 5 38 . 12 . . . . . . . . 22 Explosive 58 | . . . . . . 23 . 11 1 11 . 11 . 1 . . . . . . . . . . . . . . . Electromagnetic 89 | . . . . . . . . . 9 8 16 4 26 14 . . . . . . . . . . . . . . 12 Robot Hit Streak 35 | 3 12 6 . 13 8 5 8 13 7 32 35 16 17 13 14 12 12 18 9 18 16 18 9 12 22 9 14 13 21 Robot Miss Streak 8 | 1 5 4 . 2 4 4 1 6 2 3 3 1 6 8 2 2 4 2 . 2 5 5 8 . 3 1 3 2 5 Penetration Max 2 | . . . . . . . . . . . . . 1 1 . 2 1 1 . 1 1 1 . . 1 . 1 . 1 Secondary Targets 39 | . 3 3 . 1 2 3 1 4 . 1 3 . . 7 . 9 . . . 2 . . . . . . . . . Max Gunslinging Chain 2 | . 1 1 . 1 1 1 1 1 . 1 1 . . 2 . 2 . . . 1 . . . . . . . . . Shots Hit Robots 1966 | 3 100 19 . 28 35 60 8 105 29 157 53 55 84 119 12 158 27 78 2 48 61 138 26 3 93 15 73 41 336 Core Hits 796 | 3 40 8 . 11 21 32 5 53 14 68 19 42 41 54 3 57 4 39 . 15 11 36 8 . 31 . 27 11 143 Critical Kills 8 | . . . . . . . . 1 . 1 . . 1 3 . . . . . 1 . . . . . . . . 1 Critical Parts Destroyed 26 | . . . . . . . . . . . . . . 1 1 1 1 . . . . . . . . . . . 22 Critical Strikes 115 | 2 10 . . 1 . 2 . 3 . 7 1 . 4 6 1 1 1 . . 1 4 11 . . 2 . 4 3 51 Burn 26 | 2 10 . . 1 . 2 . 2 . 6 1 . 1 . . . . . . . . . . . . . . . 1 Meltdown 1 | . . . . . . . . . . 1 . . . . . . . . . . . . . . . . . . . Destroy 46 | . . . . . . . . 1 . . . . 1 5 1 1 1 . . 1 . . . . . . . . 35 Blast 42 | . . . . . . . . . . . . . 2 1 . . . . . . 4 11 . . 2 . 4 3 15 Melee Attacks 73 | . . . . . . . . . . . . . . . . . . 21 6 33 . . . 13 . . . . . Impact . | . . . . . . . . . . . . . . . . . . . . . . . . . . . . . . Slashing . | . . . . . . . . . . . . . . . . . . . . . . . . . . . . . . Piercing 73 | . . . . . . . . . . . . . . . . . . 21 6 33 . . . 13 . . . . . Sneak Attacks . | . . . . . . . . . . . . . . . . . . . . . . . . . . . . . . Combat Hostiles . | . . . . . . . . . . . . . . . . . . . . . . . . . . . . . . Follow-up Attacks . | . . . . . . . . . . . . . . . . . . . . . . . . . . . . . . Damage Inflicted 54139 | 39 1263 242 . 384 691 1663 126 2916 877 4788 886 2534 1930 2295 154 4258 571 1805 . 759 1043 3347 414 . 2786 212 2357 1127 14672 Guns 24726 | 39 1248 242 . 384 463 962 126 1842 390 2219 810 578 1700 2155 154 4258 536 1053 . 511 238 276 154 . 1545 23 525 213 2082 Cannons 23952 | . . . . . 228 . . . 285 961 76 203 202 106 . . 35 752 . 248 789 3071 260 . 1241 189 1832 884 12590 Explosions 5365 | . . . . . . 701 . 1074 195 1608 . 1753 . 34 . . . . . . . . . . . . . . . Melee . | . . . . . . . . . . . . . . . . . . . . . . . . . . . . . . Ramming 96 | . 15 . . . . . . . 7 . . . 28 . . . . . . . 16 . . . . . . 30 . Kinetic 37446 | . 73 130 . 237 281 558 87 664 108 401 316 387 920 1627 154 4258 536 1053 . 511 1027 3347 414 . 2786 212 2357 1097 13905 Thermal 9671 | 39 1175 112 . 147 410 404 39 1178 282 2633 318 351 561 527 . . 35 752 . 248 . . . . . . . . 460 Explosive 5365 | . . . . . . 701 . 1074 195 1608 . 1753 . 34 . . . . . . . . . . . . . . . Electromagnetic 1561 | . . . . . . . . . 285 146 252 43 421 107 . . . . . . . . . . . . . . 307 Impact . | . . . . . . . . . . . . . . . . . . . . . . . . . . . . . . Slashing . | . . . . . . . . . . . . . . . . . . . . . . . . . . . . . . Piercing . | . . . . . . . . . . . . . . . . . . . . . . . . . . . . . . Highest Corruption 19 | . . . . . . . . 10 . 1 4 4 18 19 . 1 1 1 . . . 1 . . 1 1 . 1 17 Average Corruption 4 | . . . . . . . . 7 . 1 1 4 8 18 . 1 1 1 . . . 1 . . 1 1 . 1 1 Corruption Purged 11 | . . . . . . . . . . . 2 . . . . . . . . . . . . . . 1 . . 8 Corruption Blocked . | . . . . . . . . . . . . . . . . . . . . . . . . . . . . . . Effects 296 | . . . . . . . . 37 . . 15 37 60 89 . 6 1 8 . . . 11 . . 1 . . 5 26 Message Errors 61 | . . . . . . . . 6 . . 4 8 11 17 . 1 1 2 . . . 4 . . 1 . . 1 5 Matter Fused 65 | . . . . . . . . 6 . . 3 10 14 15 . 2 . 2 . . . 2 . . . . . 1 10 Heat Flow Errors 29 | . . . . . . . . 6 . . 1 3 10 5 . 1 . 1 . . . 1 . . . . . . 1 Energy Discharges 40 | . . . . . . . . 5 . . 1 4 6 15 . 2 . 1 . . . 1 . . . . . 1 4 Parts Rejected 5 | . . . . . . . . 2 . . . . . 2 . . . . . . . . . . . . . 1 . Parts Fused 6 | . . . . . . . . 1 . . . 1 . 2 . . . 1 . . . . . . . . . . 1 Data Loss (minor) 34 | . . . . . . . . 5 . . 3 7 4 12 . . . . . . . 1 . . . . . . 2 Data Loss (major) 12 | . . . . . . . . 2 . . 1 1 3 4 . . . . . . . . . . . . . . 1 Misfires 17 | . . . . . . . . 2 . . 1 2 3 6 . . . 1 . . . 1 . . . . . 1 . Alerts 6 | . . . . . . . . 1 . . 1 . 1 2 . . . . . . . 1 . . . . . . . Misdirections 3 | . . . . . . . . . . . . . 2 1 . . . . . . . . . . . . . . . Weapon Failures 18 | . . . . . . . . 1 . . . 1 6 8 . . . . . . . . . . . . . . 2 Overload Shots 11 | . . . . . . . . . . 3 2 6 . . . . . . . . . . . . . . . . . Overflow Damage 1098 | . . . . . . . . 36 31 28 . 152 14 . . . . . . . . 59 . . 60 . 12 39 667 Projectiles 884 | . . . . . . . . . 31 2 . . 14 . . . . . . . . 59 . . 60 . 12 39 667 Explosions 214 | . . . . . . . . 36 . 26 . 152 . . . . . . . . . . . . . . . . . Melee . | . . . . . . . . . . . . . . . . . . . . . . . . . . . . . . Knockbacks 109 | . . . . . . . . . . . . . 4 . . . . . . . 1 18 1 . 9 . 8 7 61 Impact 1 | . . . . . . . . . . . . . . . . . . . . . . . . . . . . 1 . Kinetic 104 | . . . . . . . . . . . . . 4 . . . . . . . 1 18 1 . 8 . 8 5 59 Secondary 4 | . . . . . . . . . . . . . . . . . . . . . . . . . 1 . . 1 2 Self-Inflicted Damage 293 | . . . . . . 88 . 99 . 17 . 76 13 . . . . . . . . . . . . . . . . Shots 11 | . . . . . . 3 . 5 . 1 . 2 . . . . . . . . . . . . . . . . . Rammed 2 | . . . . . . . . . . . . . 2 . . . . . . . . . . . . . . . . Targets Rammed 7 | . 2 . . . . . . . 1 . . . 2 . . . . . . . 1 . . . . . . 1 . Kicked 5 | . 2 . . . . . . . 1 . . . . . . . . . . . 1 . . . . . . 1 . Crushed . | . . . . . . . . . . . . . . . . . . . . . . . . . . . . . . Highest Temperature 522 | 117 425 20 . 300 276 248 83 323 282 346 207 213 522 492 24 320 175 430 . 220 287 263 . . . 126 138 58 458 Average Temperature 103 | 59 167 8 . 121 80 66 47 68 72 105 63 65 131 108 12 95 68 101 . 77 104 81 . . . 63 24 41 121 Received Heat Transfer 4258 | . 306 102 . 120 90 198 18 216 153 177 210 186 334 141 . 463 9 66 . 45 29 140 9 . 26 9 126 . 1085 Effects 30 | . 5 . . . 1 . . . 1 2 . . 9 3 . 4 . . . . . 1 . . . . . . 4 Shutdowns 6 | . 2 . . . . . . . . . . . 2 1 . . . . . . . . . . . . . . 1 Energy Bleed 10 | . 2 . . . 1 . . . 1 1 . . 2 . . 1 . . . . . 1 . . . . . . 1 Interference 8 | . . . . . . . . . . . . . 3 1 . 3 . . . . . . . . . . . . 1 Short Circuit 2 | . . . . . . . . . . 1 . . . . . . . . . . . . . . . . . . 1 Damage (minor) 3 | . 1 . . . . . . . . . . . 2 . . . . . . . . . . . . . . . . Damage (major) 1 | . . . . . . . . . . . . . . 1 . . . . . . . . . . . . . . . Siege Activations . | . . . . . . . . . . . . . . . . . . . . . . . . . . . . . . Martial Activations . | . . . . . . . . . . . . . . . . . . . . . . . . . . . . . . Shielding Activations 1 | . . . . . . . . . . . . . . . . . . . . . . . . . . . . . 1 Total Turns 8 | . . . . . . . . . . . . . . . . . . . . . . . . . . . . . 8 Longest Duration 8 | . . . . . . . . . . . . . . . . . . . . . . . . . . . . . 8 Robots Disrupted . | . . . . . . . . . . . . . . . . . . . . . . . . . . . . . . Combat Hostiles . | . . . . . . . . . . . . . . . . . . . . . . . . . . . . . . Robots Corrupted . | . . . . . . . . . . . . . . . . . . . . . . . . . . . . . . Combat Hostiles . | . . . . . . . . . . . . . . . . . . . . . . . . . . . . . . Parts Fried 4 | . . . . . . . . . 1 . . 1 2 . . . . . . . . . . . . . . . . Impact Corruptions . | . . . . . . . . . . . . . . . . . . . . . . . . . . . . . . Robots Melted 6 | . 2 . . . . . . . . 4 . . . . . . . . . . . . . . . . . . . Combat Hostiles 2 | . 2 . . . . . . . . . . . . . . . . . . . . . . . . . . . . Parts Melted 34 | . 13 . . 1 . 2 . 1 3 8 1 . 1 2 . . . 1 . . . 1 . . . . . . . Heat Transferred 20199 | 259 4148 333 . 407 820 962 74 2294 561 5788 666 666 925 699 . . 37 794 . 259 . . . . . . . . 507 Parts Sabotaged 10 | . . . . . . . . . . . . . . . . . . . . . . 4 . . . . 6 . . Parts Stolen . | . . . . . . . . . . . . . . . . . . . . . . . . . . . . . . Parts Stripped . | . . . . . . . . . . . . . . . . . . . . . . . . . . . . . . Power Chain Reactions . | . . . . . . . . . . . . . . . . . . . . . . . . . . . . . . Alert | -11 -10 -10 -10 -9 -8 -8 -8 -8 -7 -7 -6 -6 -6 -6 -5 -5 -5 -5 -4 -4 -3 -3 -2 -2 -2 -2 -2 -1 -1 ------- Run | Yrd Mat Min Exi Min Mat Gar Mat Gar Fac Gar Fac Gar Fac Gar Fac Gar Fac Gar Fac Gar Res Gar Res Qua Gar Sec Gar Acc Com Maximum Alert Level 5 | . . . . . . 3 2 4 2 5 3 3 2 4 3 5 4 5 4 4 5 5 4 2 4 3 4 3 3 Low Security (%) 18 | 100 100 100 . 100 100 19 . . . . 33 5 3 . . . . . . . . . . . . . . . 34 Level 1 12 | . . . . . . 12 98 8 . 2 43 34 81 11 . . . . . . . . . . . . . . . Level 2 16 | . . . . . . 44 1 21 100 14 9 28 14 20 . 10 3 . . . . . . 100 24 7 14 38 15 Level 3 26 | . . . . . . 24 . 61 . 49 13 31 . 21 100 12 75 15 . 35 73 . 3 . 29 92 48 61 49 Level 4 19 | . . . . . . . . 8 . 25 . . . 46 . 45 20 35 100 64 21 39 96 . 45 . 36 . . Level 5 7 | . . . . . . . . . . 8 . . . . . 31 . 48 . . 5 60 . . . . . . . High Security . | . . . . . . . . . . . . . . . . . . . . . . . . . . . . . . Max Security . | . . . . . . . . . . . . . . . . . . . . . . . . . . . . . . Peak Influence 2419 | 10 163 72 . 60 166 807 412 1205 632 1626 848 801 470 1518 773 2419 1269 2178 1143 1493 1684 1994 1183 633 1592 1018 1459 877 1028 Initial 1269 | . . 12 . . . 76 393 267 632 368 848 88 420 259 768 521 1269 697 1143 787 829 1116 1121 627 459 895 501 875 553 Average 792 | 1 80 59 . 9 59 495 366 812 514 1061 336 492 315 953 751 1433 1021 1543 1134 1176 1050 1656 1134 623 1033 912 991 729 722 Influence Increases 21736 | 10 596 120 . 135 303 801 89 1098 317 1368 319 873 687 1635 67 2208 407 1571 12 868 1817 1158 245 36 1393 208 1238 739 1418 Destroy 0b10 Robot/C 8140 | . 400 100 . 100 160 440 40 680 160 680 180 320 320 920 . 800 140 460 . 220 300 380 100 . 300 60 240 160 480 Destroy 0b10 Robot/NC 320 | 10 40 . . . 20 . . . 20 50 . 10 30 . 10 5 5 . . . 45 . 5 . 5 . 5 5 55 Destroy Leader 882 | . 80 20 . 20 54 20 20 30 54 30 40 30 84 50 . 10 32 50 . 10 34 30 10 . 20 20 20 32 82 Allied During Kill 3556 | . . . . . . 26 6 30 34 96 4 60 63 199 2 368 127 481 . 179 320 200 115 . 313 80 265 197 391 Trap Triggered on 0b10 40 | . . . . . . . . . . . . 40 . . . . . . . . . . . . . . . . . Successful Hack 255 | . 15 . . . 26 . 8 28 20 . 44 8 2 . 24 . 10 14 . 28 . . . . 14 . . . 14 Select Force Hacks 60 | . 60 . . . . . . . . . . . . . . . . . . . . . . . . . . . . Disable Machine 705 | . . . . . . . . . 15 75 15 60 90 15 15 45 45 45 . 30 . 45 . . 15 15 15 120 45 Anti-Garrison Action 3450 | . . . . . . 150 . 250 . 300 . 200 . 350 . 850 . 400 . 150 . 400 . . 300 . 100 . . Destroy Structure 3833 | . 1 . . . 13 135 . 65 14 62 6 85 23 56 16 130 48 121 12 221 1118 73 15 36 411 33 593 210 336 Lose Combat Pursuer 495 | . . . . 15 30 30 15 15 . 75 30 60 75 45 . . . . . 30 . 30 . . 15 . . 15 15 Influence Decreases 20723 | 10 564 100 52 135 185 112 484 305 995 279 1809 198 1117 542 786 534 1830 389 1065 518 1803 653 1123 539 414 1132 447 1333 1270 Entered New Map 10741 | . . 20 52 . . 42 414 145 573 159 768 38 381 112 696 224 1150 299 1035 338 646 373 873 489 154 697 167 584 312 Time Decay 4272 | 10 524 50 . 135 185 . 70 . 392 . 546 . 586 . 90 . 130 . 30 . 362 . 180 50 . 60 . 334 538 Lost Part 450 | . 40 30 . . . 10 . 120 10 10 . 40 40 30 . 40 . 10 . . 10 20 10 . . . . . 30 Lost Ally 3510 | . . . . . . 60 . 40 20 110 120 120 110 400 . 270 . 80 . 180 510 260 60 . 260 100 280 140 390 Purge Threat 1750 | . . . . . . . . . . . 375 . . . . . 550 . . . 275 . . . . 275 . 275 . Squads Dispatched 59 | . 4 . . . 3 . 2 . 2 . 7 . 6 . 2 . 4 . . . 9 . 4 . . 3 . 4 9 Investigation 10 | . 2 . . . 1 . 1 . . . 2 . . . 2 . 1 . . . 1 . . . . . . . . Extermination 13 | . . . . . . . . . 1 . 2 . 4 . . . . . . . 1 . 1 . . . . 1 3 Reinforcement 14 | . 2 . . . 1 . . . . . 1 . 2 . . . 1 . . . 2 . 1 . . 2 . 1 1 Assault 14 | . . . . . . . . . 1 . . . . . . . . . . . 4 . 2 . . . . 2 5 Garrison 8 | . . . . . 1 . 1 . . . 2 . . . . . 2 . . . 1 . . . . 1 . . . Intercept . | . . . . . . . . . . . . . . . . . . . . . . . . . . . . . . Searches Triggered . | . . . . . . . . . . . . . . . . . . . . . . . . . . . . . . Unchained Authorized 1 | . . . . . . . . . . . . . . . . . . . . . 1 . . . . . . . . Construction Impeded . | . . . . . . . . . . . . . . . . . . . . . . . . . . . . . . Haulers Reinforced 2 | . . . . . . . . . . . . . . . . . . . . . 1 . . . . . . 1 . Active Scanning Responses . | . . . . . . . . . . . . . . . . . . . . . . . . . . . . . . Cargo Convoy Interrupts . | . . . . . . . . . . . . . . . . . . . . . . . . . . . . . . Alert ID Control Effect 202 | . . . . . . . . . . . 3 9 4 5 . 1 . 15 . 27 15 20 4 . 18 8 25 29 19 Stealth | -11 -10 -10 -10 -9 -8 -8 -8 -8 -7 -7 -6 -6 -6 -6 -5 -5 -5 -5 -4 -4 -3 -3 -2 -2 -2 -2 -2 -1 -1 --------- Run | Yrd Mat Min Exi Min Mat Gar Mat Gar Fac Gar Fac Gar Fac Gar Fac Gar Fac Gar Fac Gar Res Gar Res Qua Gar Sec Gar Acc Com Distress Signals 20 | . 2 . . . 3 . . . . . . . 1 2 . . . . . 1 2 . . . 2 . . 4 3 Communications Jammed 326 | . . . . . . . . . 1 . . . 11 . . . . . . . 140 . 1 . . 54 . 68 51 Distress Signals 324 | . . . . . . . . . . . . . 11 . . . . . . . 140 . . . . 54 . 68 51 Times Spotted 764 | . 27 4 . 6 15 21 4 35 13 38 18 32 31 57 . 42 6 43 . 34 43 59 16 . 39 13 50 28 90 Peak Tracking Total 11 | . 7 2 . 3 7 7 3 7 4 7 3 5 4 9 . 8 2 5 . 6 8 9 5 . 5 9 11 6 8 Tactical Retreats 27 | . . . . 1 1 1 1 1 . 4 2 4 4 1 . . . . . 2 . 2 . . 1 . . 1 1 Traps | -11 -10 -10 -10 -9 -8 -8 -8 -8 -7 -7 -6 -6 -6 -6 -5 -5 -5 -5 -4 -4 -3 -3 -2 -2 -2 -2 -2 -1 -1 ------- Run | Yrd Mat Min Exi Min Mat Gar Mat Gar Fac Gar Fac Gar Fac Gar Fac Gar Fac Gar Fac Gar Res Gar Res Qua Gar Sec Gar Acc Com Traps Triggered 55 | . 3 . . . . 4 . 2 . 5 3 1 2 10 . 3 . 4 . 4 . 5 . . 4 . 3 . 2 Indirectly . | . . . . . . . . . . . . . . . . . . . . . . . . . . . . . . Trap Hack Attempts . | . . . . . . . . . . . . . . . . . . . . . . . . . . . . . . Triggered . | . . . . . . . . . . . . . . . . . . . . . . . . . . . . . . Disarmed . | . . . . . . . . . . . . . . . . . . . . . . . . . . . . . . Reprogrammed . | . . . . . . . . . . . . . . . . . . . . . . . . . . . . . . Reused 4 | . . . . . . . . . . . . 4 . . . . . . . . . . . . . . . . . Traps Extracted . | . . . . . . . . . . . . . . . . . . . . . . . . . . . . . . Installed 8 | . . . . . . . . . . . . 8 . . . . . . . . . . . . . . . . . Triggered 4 | . . . . . . . . . . . . 4 . . . . . . . . . . . . . . . . . Most Traps Carried 2 | . . . . . . . . . . . . 2 . . . . . . . . . . . . . . . . . Machines | -11 -10 -10 -10 -9 -8 -8 -8 -8 -7 -7 -6 -6 -6 -6 -5 -5 -5 -5 -4 -4 -3 -3 -2 -2 -2 -2 -2 -1 -1 ---------- Run | Yrd Mat Min Exi Min Mat Gar Mat Gar Fac Gar Fac Gar Fac Gar Fac Gar Fac Gar Fac Gar Res Gar Res Qua Gar Sec Gar Acc Com Machines Disabled 92 | . . . . . . 3 . 2 1 8 1 6 6 7 1 9 3 10 . 5 . 10 . . 5 1 3 8 3 Max in Single Turn 4 | . . . . . . 1 . 1 1 3 1 4 1 1 1 1 . 1 . 1 . 1 . . 1 1 1 1 1 Garrison Access 1 | . . . . . . . . . . . . . . . . . . . . . . . . . . . . 1 . Garrison Relay 43 | . . . . . . 3 . 2 . 3 . 2 . 5 . 6 . 7 . 3 . 6 . . 4 . 2 . . Machines Repaired . | . . . . . . . . . . . . . . . . . . . . . . . . . . . . . . Machines Dismantled 6 | . . . . . . . . . . . . . . . . 1 . . . . . 1 . . . . . 4 . Machines Sabotaged . | . . . . . . . . . . . . . . . . . . . . . . . . . . . . . . Overloaded Fab Kills . | . . . . . . . . . . . . . . . . . . . . . . . . . . . . . . Hacking | -11 -10 -10 -10 -9 -8 -8 -8 -8 -7 -7 -6 -6 -6 -6 -5 -5 -5 -5 -4 -4 -3 -3 -2 -2 -2 -2 -2 -1 -1 --------- Run | Yrd Mat Min Exi Min Mat Gar Mat Gar Fac Gar Fac Gar Fac Gar Fac Gar Fac Gar Fac Gar Res Gar Res Qua Gar Sec Gar Acc Com Machines Accessed 81 | . 8 . 1 . 4 2 1 3 7 2 10 2 8 1 3 3 3 3 1 3 3 2 . 1 2 1 3 1 3 Terminals 51 | . 6 . . . 2 2 . 3 4 2 3 2 3 1 2 3 1 3 . 3 2 2 . . 2 . 3 . 2 Fabricators 3 | . . . . . . . . . 1 . 1 . . . . . 1 . . . . . . . . . . . . Repair Stations 1 | . . . . . . . . . . . 1 . . . . . . . . . . . . . . . . . . Recycling Units 8 | . 2 . . . . . . . . . 3 . 2 . . . . . . . . . . . . . . . 1 Scanalyzers 5 | . . . . . 1 . . . 1 . 1 . 2 . . . . . . . . . . . . . . . . Garrison Access 12 | . . . . . 1 . 1 . 1 . 1 . 1 . 1 . 1 . 1 . 1 . . 1 . 1 . 1 . Total Hacks 175 | . 20 . 4 . 13 5 2 6 21 4 23 2 16 1 7 4 5 5 2 5 6 3 . 2 4 2 6 1 6 Successful 89 | . 14 . 4 . 7 1 2 2 9 1 16 2 8 . 4 . 5 1 1 2 1 1 . 1 1 1 2 1 2 Failed 85 | . 6 . . . 5 4 . 4 12 3 7 . 8 1 3 4 . 4 1 3 5 2 . 1 3 1 4 . 4 Catastrophic 22 | . 1 . . . . 1 . . 5 . 1 . 1 1 1 . . 2 . 1 2 . . . 1 . 3 . 2 Database Lockouts 1 | . . . . . 1 . . . . . . . . . . . . . . . . . . . . . . . . Manual 57 | . 18 . . . 6 . 1 . 8 . 5 . 4 . 5 . 2 . 1 . 2 . . 1 . 1 . . 3 Terminals 110 | . 16 . . . 7 5 . 6 15 4 8 2 5 1 5 4 1 5 . 5 3 3 . . 4 . 6 . 5 Fabricators 6 | . . . . . . . . . 2 . 2 . . . . . 2 . . . . . . . . . . . . Repair Stations 2 | . . . . . . . . . . . 2 . . . . . . . . . . . . . . . . . . Recycling Units 11 | . 4 . . . . . . . . . 4 . 2 . . . . . . . . . . . . . . . 1 Scanalyzers 17 | . . . . . 3 . . . 2 . 5 . 7 . . . . . . . . . . . . . . . . Garrison Access 25 | . . . . . 3 . 2 . 2 . 2 . 2 . 2 . 2 . 2 . 3 . . 2 . 2 . 1 . Terminal Hacks 30 | . 3 . 4 . 1 1 . 2 6 1 1 2 . . 1 . 1 1 . 2 . 1 . . 1 . 2 . . Record 6 | . 1 . 4 . . . . . . . . . . . 1 . . . . . . . . . . . . . . Part Schematic 4 | . 1 . . . . . . . 3 . . . . . . . . . . . . . . . . . . . . Robot Schematic 1 | . . . . . . . . . 1 . . . . . . . . . . . . . . . . . . . . Prototype ID Bank 3 | . 1 . . . 1 . . . 1 . . . . . . . . . . . . . . . . . . . . Open Door 1 | . . . . . . . . . . . . . . . . . . . . . . . . . . . 1 . . Open DSF 1 | . . . . . . . . . . . . . . . . . 1 . . . . . . . . . . . . Emergency Access Points 4 | . . . . . . . . 1 . . . 1 . . . . . 1 . . . . . . 1 . . . . Locate Traps 1 | . . . . . . . . . 1 . . . . . . . . . . . . . . . . . . . . Hauler Manifests 1 | . . . . . . . . . . . 1 . . . . . . . . . . . . . . . . . . Garrison Registry 4 | . . . . . . 1 . . . . . 1 . . . . . . . 1 . . . . . . 1 . . Patrol Navigation 2 | . . . . . . . . 1 . . . . . . . . . . . 1 . . . . . . . . . Security Stations 2 | . . . . . . . . . . 1 . . . . . . . . . . . 1 . . . . . . . Fabricator Hacks 3 | . . . . . . . . . . . 2 . . . . . 1 . . . . . . . . . . . . Load Schematic 2 | . . . . . . . . . . . 1 . . . . . 1 . . . . . . . . . . . . Build 1 | . . . . . . . . . . . 1 . . . . . . . . . . . . . . . . . . Repair Station Hacks 2 | . . . . . . . . . . . 2 . . . . . . . . . . . . . . . . . . Scan Component 1 | . . . . . . . . . . . 1 . . . . . . . . . . . . . . . . . . Repair 1 | . . . . . . . . . . . 1 . . . . . . . . . . . . . . . . . . Recycling Unit Hacks 5 | . . . . . . . . . . . 3 . 1 . . . . . . . . . . . . . . . 1 Retrieve Components 5 | . . . . . . . . . . . 3 . 1 . . . . . . . . . . . . . . . 1 Scanalyzer 11 | . . . . . 1 . . . 1 . 3 . 6 . . . . . . . . . . . . . . . . Insert Component 2 | . . . . . . . . . . . . . 2 . . . . . . . . . . . . . . . . Analyze 2 | . . . . . . . . . . . . . 2 . . . . . . . . . . . . . . . . Retrieve Study 7 | . . . . . 1 . . . 1 . 3 . 2 . . . . . . . . . . . . . . . . Garrison Access Hacks 12 | . . . . . 1 . 1 . 1 . 1 . 1 . 1 . 1 . 1 . 1 . . 1 . 1 . 1 . Unlock Access 11 | . . . . . 1 . 1 . 1 . 1 . 1 . 1 . 1 . 1 . 1 . . 1 . 1 . . . Seal Access 1 | . . . . . . . . . . . . . . . . . . . . . . . . . . . . 1 . Unauthorized Hacks 24 | . 9 . . . 4 . 1 . 1 . 4 . . . 2 . 2 . . . . . . . . . . . 1 Terminals 16 | . 7 . . . 3 . . . 1 . 3 . . . 1 . . . . . . . . . . . . . 1 Botnet 10 | . 2 . . . 2 . . . 1 . 3 . . . 1 . . . . . . . . . . . . . 1 Skim 6 | . 5 . . . 1 . . . . . . . . . . . . . . . . . . . . . . . . Fabricators 1 | . . . . . . . . . . . . . . . . . 1 . . . . . . . . . . . . Liberate 1 | . . . . . . . . . . . . . . . . . 1 . . . . . . . . . . . . Repair Stations . | . . . . . . . . . . . . . . . . . . . . . . . . . . . . . . Recycling Units 2 | . 2 . . . . . . . . . . . . . . . . . . . . . . . . . . . . Tunnel 2 | . 2 . . . . . . . . . . . . . . . . . . . . . . . . . . . . Scanalyzers . | . . . . . . . . . . . . . . . . . . . . . . . . . . . . . . Garrison Access 5 | . . . . . 1 . 1 . . . 1 . . . 1 . 1 . . . . . . . . . . . . Reprogram 5 | . . . . . 1 . 1 . . . 1 . . . 1 . 1 . . . . . . . . . . . . Data Cores Recovered 4 | . 1 . . . 1 . . . 1 . . . . . . . . . . . . . . . . 1 . . . Used 2 | . 1 . . . 1 . . . . . . . . . . . . . . . . . . . . . . . . Hacking Detections 67 | . 5 . . . 3 2 . 3 7 2 7 2 8 1 2 3 2 3 1 3 3 1 . 1 2 1 3 . 2 Full Trace Events 4 | . . . . . . . . 1 . 1 1 . . . 1 . . . . . . . . . . . . . . Feedback Events . | . . . . . . . . . . . . . . . . . . . . . . . . . . . . . . Feedback Blocked . | . . . . . . . . . . . . . . . . . . . . . . . . . . . . . . Robot Schematics Acquired 1 | . . . . . . . . . 1 . . . . . . . . . . . . . . . . . . . . Robots Built . | . . . . . . . . . . . . . . . . . . . . . . . . . . . . . . Authchips . | . . . . . . . . . . . . . . . . . . . . . . . . . . . . . . Time . | . . . . . . . . . . . . . . . . . . . . . . . . . . . . . . Total Robot Build Rating . | . . . . . . . . . . . . . . . . . . . . . . . . . . . . . . Part Schematics Acquired 7 | . 1 . . . . . . . 3 . . . 2 . . . . . . . . . . . . . 1 . . Parts Built 2 | . . . . . . . . . . . 2 . . . . . . . . . . . . . . . . . . Authchips . | . . . . . . . . . . . . . . . . . . . . . . . . . . . . . . Time 62 | . . . . . . . . . . . 62 . . . . . . . . . . . . . . . . . . Total Part Build Rating 4 | . . . . . . . . . . . 4 . . . . . . . . . . . . . . . . . . Part Studies Acquired 7 | . . . . . 1 . . . 1 . 3 . 2 . . . . . . . . . . . . . . . . Parts Repaired 1 | . . . . . . . . . . . 1 . . . . . . . . . . . . . . . . . . Time 56 | . . . . . . . . . . . 56 . . . . . . . . . . . . . . . . . . Parts Recycled . | . . . . . . . . . . . . . . . . . . . . . . . . . . . . . . Recycled Matter . | . . . . . . . . . . . . . . . . . . . . . . . . . . . . . . Retrieved Matter . | . . . . . . . . . . . . . . . . . . . . . . . . . . . . . . Retrieved Components 17 | . . . . . . . . . . . 7 . 3 . . . . . . . . . . . . . . . 7 Parts Scanalyzed 2 | . . . . . . . . . . . . . 2 . . . . . . . . . . . . . . . . Part Schematics Acquired 2 | . . . . . . . . . . . . . 2 . . . . . . . . . . . . . . . . Parts Damaged 1 | . . . . . . . . . . . . . 1 . . . . . . . . . . . . . . . . Bothacking | -11 -10 -10 -10 -9 -8 -8 -8 -8 -7 -7 -6 -6 -6 -6 -5 -5 -5 -5 -4 -4 -3 -3 -2 -2 -2 -2 -2 -1 -1 ------------ Run | Yrd Mat Min Exi Min Mat Gar Mat Gar Fac Gar Fac Gar Fac Gar Fac Gar Fac Gar Fac Gar Res Gar Res Qua Gar Sec Gar Acc Com Used RIF Installer 13 | . . . . . . 1 . 1 . 2 . 2 . 1 . 1 . 1 . 1 . 1 . . 1 . 1 . . Coupler Efficiency 1 | . . . . . . . . . . . . . . . . . . . . 1 . . . . . . . . . Hotswap 1 | . . . . . . . . . . . . . . . . 1 . . . . . . . . . . . . . Signal Jammer 1 | . . . . . . . . 1 . . . . . . . . . . . . . . . . . . . . . Zone Cloak 2 | . . . . . . . . . . 1 . . . . . . . . . . . . . . 1 . . . . Robot Detection 1 | . . . . . . . . . . . . . . 1 . . . . . . . . . . . . . . . Patrol Navigation 1 | . . . . . . . . . . . . . . . . . . . . . . 1 . . . . . . . Alert ID Control 1 | . . . . . . . . . . 1 . . . . . . . . . . . . . . . . . . . Structural Interface 1 | . . . . . . . . . . . . 1 . . . . . . . . . . . . . . . . . Autooverride 2 | . . . . . . . . . . . . . . . . . . 1 . . . . . . . . 1 . . Autoassimilate 1 | . . . . . . . . . . . . 1 . . . . . . . . . . . . . . . . . Robots Hacked 238 | . . . . . . . . 3 4 1 6 4 10 17 2 5 1 21 1 15 27 29 14 2 20 8 13 17 18 Non-combat 40 | . . . . . . . . . 3 . 1 . 7 . 2 . 1 1 1 . 8 . 5 2 . 1 . 5 3 Combat 198 | . . . . . . . . 3 1 1 5 4 3 17 . 5 . 20 . 15 19 29 9 . 20 7 13 12 15 Autooverrided 21 | . . . . . . . . . . . . . . . . . . 3 . 1 1 4 . . 5 . 2 2 3 Autoassimilated 36 | . . . . . . . . . . . . . 1 5 . 1 . 3 . 5 3 6 1 . 4 . 3 2 2 Robot Hacks Applied 205 | . . . . . . . . 4 4 1 9 4 10 12 2 5 6 15 1 10 27 19 15 3 11 10 8 16 13 parse_system 3 | . . . . . . . . . . . . . 1 . . . . . . 1 1 . . . . . . . . no_distress 15 | . . . . . . . . . . . . . . . 2 . . . . . 2 . 5 . . . . 4 2 generate_echo 1 | . . . . . . . . . . . . . 1 . . . . . . . . . . . . . . . . ignore_repairs 1 | . . . . . . . . . . . . . . . . . . . . . . . . 1 . . . . . map_walls 10 | . . . . . . . . . 1 . . . 5 . . . . . . . 1 . 1 1 . . . 1 . drop_inventory 1 | . . . . . . . . . . . . . 1 . . . . . . . . . . . . . . . . purge_threat 15 | . . . . . . . . . . . 3 . . . . . 6 . . . 2 . . . . 2 . 2 . reprogram_traps 1 | . . . . . . . . . . . 1 . . . . . . . . . . . . . . . . . . mark_security 1 | . . . . . . . . . 1 . . . . . . . . . . . . . . . . . . . . redirect_shields 1 | . . . . . . . . . . . . . . . . . . . . . . . . . . . . . 1 find_garrison 2 | . . . . . . . . . 1 . . . . . . . . . . . 1 . . . . . . . . scatter_targeting 1 | . . . . . . . . . . . . . . . . 1 . . . . . . . . . . . . . mark_system 2 | . . . . . . . . . . . . . . . . . . . . . 1 . . . . . 1 . . spike_heat 1 | . . . . . . . . . . . . . . . . . . . . . . . 1 . . . . . . overload_power 3 | . . . . . . . . . . . . . . . . 1 . . . . 1 . 1 . . . . . . reboot_system 9 | . . . . . . . . . . . . . 1 1 . . . 2 . 1 . . . . . 1 1 1 1 overwrite_iff 21 | . . . . . . . . . . . . . . 4 . 2 . . . 1 2 2 2 . . 2 4 1 1 formatsys_low 8 | . . . . . . . . . 1 . . . . . . . . 1 1 . 3 . . 1 . 1 . . . formatsys_high 109 | . . . . . . . . 4 . 1 5 4 1 7 . 1 . 12 . 7 13 17 5 . 11 4 2 7 8 Relay Couplers Released 186 | . . . . . . 14 . 12 . 14 . 8 . 20 . 25 . 26 . 13 3 26 . . 16 . 9 . . Machine Destruction 179 | . . . . . . 14 . 8 . 14 . 8 . 20 . 25 . 26 . 13 . 26 . . 16 . 9 . . Programmers 7 | . . . . . . . . 4 . . . . . . . . . . . . 3 . . . . . . . . Attached 61 | . . . . . . . . 3 1 1 4 4 2 7 1 1 1 6 1 6 4 2 3 . 8 2 2 1 1 Fabnet Peak Effective % . | . . . . . . . . . . . . . . . . . . . . . . . . . . . . . . Robots Rewired 51 | . . . . . . . . . . 6 . 3 . 7 1 11 . . . 5 . 10 . . 5 . 3 . . Allies Hacked 16 | . . . . . . . . . 1 1 1 . . . . . . . . . 1 3 . . 1 . 2 . 6 Hacks Repelled . | . . . . . . . . . . . . . . . . . . . . . . . . . . . . . . Allies | -11 -10 -10 -10 -9 -8 -8 -8 -8 -7 -7 -6 -6 -6 -6 -5 -5 -5 -5 -4 -4 -3 -3 -2 -2 -2 -2 -2 -1 -1 -------- Run | Yrd Mat Min Exi Min Mat Gar Mat Gar Fac Gar Fac Gar Fac Gar Fac Gar Fac Gar Fac Gar Res Gar Res Qua Gar Sec Gar Acc Com Total Allies 274 | . . . . . 3 . 2 3 13 7 7 9 2 23 4 15 3 21 1 19 22 39 8 1 25 7 14 12 14 Largest Group 34 | . . . . . 3 3 2 3 11 4 4 7 5 5 3 8 10 23 23 32 25 28 29 29 34 30 27 24 17 Highest-Rated Group 2383 | . . . . . 48 48 28 45 225 128 128 266 262 279 265 458 443 1151 1112 1762 1353 1490 1745 1695 2383 2167 2045 1770 1312 Highest-Rated Ally 183 | . . . . . 16 16 18 18 31 32 32 95 95 116 116 116 116 116 116 116 142 142 183 183 183 183 183 183 183 Total Orders 54 | . . . . . . . . . 1 11 1 2 . . . 8 4 2 . 7 4 1 . . 6 2 4 . 1 STAY 17 | . . . . . . . . . . 5 1 1 . . . . . 1 . 1 . 1 . . 3 1 2 . 1 ROAM 12 | . . . . . . . . . . 1 . . . . . 5 2 . . 2 . . . . 2 . . . . FOLLOW 19 | . . . . . . . . . . 5 . 1 . . . 3 2 1 . 3 . . . . 1 1 2 . . AID 3 | . . . . . . . . . 1 . . . . . . . . . . 1 1 . . . . . . . . TUNNEL 3 | . . . . . . . . . . . . . . . . . . . . . 3 . . . . . . . . Ally Attacks 1663 | . . . . . . 31 2 6 19 52 25 44 41 78 . 70 23 89 . 122 220 97 38 . 145 60 146 152 203 Total Damage 56072 | . . . . . . 384 58 106 462 1032 697 1136 1257 2478 . 2228 874 1992 . 3882 9109 3676 915 . 4539 1983 5097 5786 8381 Kills 338 | . . . . . . 4 1 1 3 16 4 13 8 16 . 18 6 21 . 33 37 20 5 . 22 12 26 37 35 Allies Corrupted 18 | . . . . . . . . . . . . . . 2 . 1 . 1 . . 2 2 . . 1 1 . . 8 Allies Melted 3 | . . . . . . . . . . . . . . 1 . . . . . . . . . . . 1 . . 1 Intel | -11 -10 -10 -10 -9 -8 -8 -8 -8 -7 -7 -6 -6 -6 -6 -5 -5 -5 -5 -4 -4 -3 -3 -2 -2 -2 -2 -2 -1 -1 ------- Run | Yrd Mat Min Exi Min Mat Gar Mat Gar Fac Gar Fac Gar Fac Gar Fac Gar Fac Gar Fac Gar Res Gar Res Qua Gar Sec Gar Acc Com Active Infowar (turns) 11156 | 23 895 25 188 262 89 . . . . . 315 832 1014 66 . 368 265 1306 79 1051 828 1486 375 112 1292 125 155 . 5 Optics 7442 | . . . . . . . . . . . . . . . . 368 265 1306 79 1051 828 1486 375 112 1292 125 155 . . Sensors 542 | . . . . . . . . . . . . . 541 . . . . . . . . . . . . . . . 1 IFF 399 | . . . . . . . . . . . . . 333 66 . . . . . . . . . . . . . . . Seismic 1482 | 23 895 25 188 262 89 . . . . . . . . . . . . . . . . . . . . . . . . Machine Analysis 1147 | . . . . . . . . . . . 315 832 . . . . . . . . . . . . . . . . . Cloaking 2 | . . . . . . . . . . . . . . . . . . . . . . . . . . . . . 2 Spoofing 140 | . . . . . . . . . . . . . 140 . . . . . . . . . . . . . . . . Jamming 2 | . . . . . . . . . . . . . . . . . . . . . . . . . . . . . 2 Robot Analysis Total . | . . . . . . . . . . . . . . . . . . . . . . . . . . . . . . Derelict Logs Recovered 1 | . . . . 1 . . . . . . . . . . . . . . . . . . . . . . . . . Drone Launches . | . . . . . . . . . . . . . . . . . . . . . . . . . . . . . . Drone Recoveries . | . . . . . . . . . . . . . . . . . . . . . . . . . . . . . . Exploration | -11 -10 -10 -10 -9 -8 -8 -8 -8 -7 -7 -6 -6 -6 -6 -5 -5 -5 -5 -4 -4 -3 -3 -2 -2 -2 -2 -2 -1 -1 ------------- Run | Yrd Mat Min Exi Min Mat Gar Mat Gar Fac Gar Fac Gar Fac Gar Fac Gar Fac Gar Fac Gar Res Gar Res Qua Gar Sec Gar Acc Com Turns Passed 28243 | 123 1808 104 188 834 520 927 157 1314 920 1740 1575 1761 1827 1691 188 1601 265 1306 79 1051 828 1486 375 112 1292 125 946 755 2345 Spaces Moved 16612 | 57 811 36 157 406 305 643 114 859 699 962 765 933 981 944 135 946 168 948 55 757 581 893 236 52 772 73 558 377 1389 Core 14 | 12 2 . . . . . . . . . . . . . . . . . . . . . . . . . . . . Treads 3281 | 45 365 10 . . . . . . . 365 765 933 783 15 . . . . . . . . . . . . . . . Legs 12524 | . 444 26 157 406 305 643 114 859 699 597 . . . 376 135 946 168 948 55 757 581 893 236 52 772 71 558 377 1349 Wheels 751 | . . . . . . . . . . . . . 198 553 . . . . . . . . . . . . . . . Hover . | . . . . . . . . . . . . . . . . . . . . . . . . . . . . . . Flight . | . . . . . . . . . . . . . . . . . . . . . . . . . . . . . . Fastest Speed 50 | 50 120 120 120 120 120 116 120 112 108 108 160 160 120 120 117 104 104 100 100 100 104 115 116 124 124 124 124 124 110 Average Speed 128 | 147 138 133 120 188 121 119 120 114 112 131 160 160 154 135 117 121 104 102 100 102 110 119 118 124 124 124 124 135 122 Slowest Speed 480 | 160 350 190 120 190 190 120 120 180 116 245 160 160 240 480 117 187 104 104 100 104 120 130 190 124 124 124 200 190 194 Overloaded Moves . | . . . . . . . . . . . . . . . . . . . . . . . . . . . . . . Propulsion Burnouts . | . . . . . . . . . . . . . . . . . . . . . . . . . . . . . . Robots Hopped 1 | . . . . . . . . . . . . . . . . . . . . . . 1 . . . . . . . Potential Cave-ins 2 | . . . . . . . . . . . . . . . . . . 2 . . . . . . . . . . . Cave-ins Triggered . | . . . . . . . . . . . . . . . . . . . . . . . . . . . . . . Spacefolds 11 | . . . . . . . . . . . . . . . . . . . . . . . . . . 1 . . 10 Exploration Rate (%) 44 | 4 95 6 52 82 27 58 13 66 18 80 19 74 25 83 4 98 5 96 1 81 19 92 10 4 95 6 72 13 36 Regions Visited 29 Branch Regions 6 Pre-discovered Areas 5 | . 4 . 1 . . . . . . . . . . . . . . . . . . . . . . . . . . Known Exits Taken 11 | . . . . . 1 . 1 . 1 . 1 . 1 . 1 . 1 . 1 . 1 . . 1 . 1 . . . Unknown Exits Taken 7 | 1 1 1 1 1 . . . . . . . . . . . . . . . . . . 1 . . . . 1 . Scrap Searched 2 | . . . . 2 . . . . . . . . . . . . . . . . . . . . . . . . . Spaces Dug 178 | . . . . . . 46 . . . 1 2 . 2 . . . 4 15 6 24 . . . 12 27 . 34 1 4 Terrain Destroyed 668 | . . . . . 11 159 . 17 12 27 4 82 5 20 4 13 8 26 6 29 9 23 5 12 41 . 54 11 90 Melee 57 | . . . . . . . . . . . . . . . . . . 15 6 24 . . . 12 . . . . . Projectile 307 | . . . . . 11 2 . 1 . 1 4 2 5 8 4 12 8 11 . 5 9 23 5 . 41 . 54 11 90 AOE 303 | . . . . . . 157 . 16 12 26 . 80 . 12 . . . . . . . . . . . . . . . Terrain Rammed . | . . . . . . . . . . . . . . . . . . . . . . . . . . . . . . Walls Destroyed . | . . . . . . . . . . . . . . . . . . . . . . . . . . . . . . Machines Disabled . | . . . . . . . . . . . . . . . . . . . . . . . . . . . . . . Actions | -11 -10 -10 -10 -9 -8 -8 -8 -8 -7 -7 -6 -6 -6 -6 -5 -5 -5 -5 -4 -4 -3 -3 -2 -2 -2 -2 -2 -1 -1 --------- Run | Yrd Mat Min Exi Min Mat Gar Mat Gar Fac Gar Fac Gar Fac Gar Fac Gar Fac Gar Fac Gar Res Gar Res Qua Gar Sec Gar Acc Com Total 21058 | 86 1342 62 156 446 416 728 130 1062 802 1240 1063 1127 1189 1205 156 1247 224 1144 66 921 719 1160 303 72 980 101 691 522 1698 Wait 1506 | 15 407 3 . 10 54 9 10 41 39 73 221 65 62 39 1 88 24 48 2 52 48 58 25 3 33 . 17 33 26 Move 16548 | 56 810 35 156 405 304 642 113 858 698 961 764 932 981 943 134 945 167 947 54 756 580 889 235 51 771 71 556 375 1359 Hop 1 | . . . . . . . . . . . . . . . . . . . . . . 1 . . . . . . . Pick Up 246 | 2 17 1 . 3 6 5 1 15 10 15 9 15 14 18 5 8 . 15 . 11 4 20 3 . 12 1 7 1 28 Fast Attach 164 | 8 11 . . . 10 . . 6 5 10 4 6 13 13 . 15 2 3 . 2 6 12 1 . 3 2 6 2 24 Attach 135 | . 3 4 . . 2 3 . 14 3 5 6 14 6 8 3 7 . 7 1 4 5 9 3 . 1 . 5 2 20 Detach 37 | . . 1 . . 1 . . . 2 1 2 7 4 2 . 4 . 1 . . 2 1 . . . 1 . . 8 Swap 313 | 1 5 3 . 5 5 9 2 21 10 25 15 14 21 18 1 29 5 24 1 14 8 14 2 2 21 6 8 2 22 Drop 296 | 1 12 . . 6 12 6 1 13 13 28 7 14 23 19 2 28 3 15 . 6 9 14 2 . 14 4 4 1 39 Fire 1510 | 3 75 15 . 17 22 46 3 89 21 106 35 51 63 106 10 109 23 63 2 43 55 114 32 3 90 16 85 42 171 Melee 73 | . . . . . . . . . . . . . . . . . . 21 6 33 . . . 13 . . . . . Ram 2 | . . . . . . . . . . . . . 2 . . . . . . . . . . . . . . . . Kick 5 | . 2 . . . . . . . 1 . . . . . . . . . . . 1 . . . . . . 1 . Crush . | . . . . . . . . . . . . . . . . . . . . . . . . . . . . . . Escape Stasis 89 | . . . . . . 8 . 5 . 8 . 1 . 38 . 5 . . . . . 20 . . . . 3 1 . Rewire 47 | . . . . . . . . . . 8 . . . 1 . 1 . . . . 1 . . . 35 . . . 1 Trap 8 | . . . . . . . . . . . . 8 . . . . . . . . . . . . . . . . . Miscellaneous 78 | . . . . . . . . . . . . . . . . 8 . . . . . 8 . . . . . 62 . Route ------- -11/Scrapyard -10/Materials (discovered 5 exits: [*Mat x3] / [*Min] / Sub) -10/Mines (discovered 2 exits: *Exi / Sub) -10/Exiles -9/Mines -8/Materials (discovered 4 exits: *Fac x2 / *Sto / Gar) -8/Garrison (discovered 3 exits: *Mat x3) -8/Materials -8/Garrison (discovered 3 exits: *Fac x3) -7/Factory (discovered 2 exits: [*Low] / Gar) -7/Garrison (discovered 3 exits: *Fac x3) -6/Factory (discovered 3 exits: *Fac / *Low / Gar) -6/Garrison (discovered 4 exits: *Fac x3 / *Fac) -6/Factory (discovered 4 exits: *Low x2 / [*Ext] / Gar) -6/Garrison (discovered 3 exits: *Fac x3) -5/Factory -5/Garrison (discovered 3 exits: *Fac x3) -5/Factory -5/Garrison (discovered 3 exits: *Fac x3) -4/Factory -4/Garrison (discovered 3 exits: *Res x3) -3/Research (discovered 2 exits: [*Arm] / Gar) -3/Garrison (discovered 3 exits: [*Res x3]) -2/Research -2/Quarantine -2/Garrison (discovered 3 exits: *Sec x3) -2/Section 7 -2/Garrison (discovered 3 exits: *Acc x3) -1/Access -1/Command (discovered 2 exits: Sur x2) History --------- Turn | Location | Event 12 | -11/Scrapyard | Discovered new exit (range 16) 124 | -11/Scrapyard | Entered Materials 302 | -10/Materials | Discovered new exit (range 5) 313 | -10/Materials | Build established: Mutant 730 | -10/Materials | Discovered new exit (range 14) 990 | -10/Materials | Build established: Scavenger-Mutant 1196 | -10/Materials | Discovered new exit (range 10) 1197 | -10/Materials | Discovered new exit (range 13) 1385 | -10/Materials | Core integrity fell below 50% 1515 | -10/Materials | Learned 4 Recycling zone layouts 1570 | -10/Materials | Learned 4 Subcaves zone layouts 1585 | -10/Materials | Build established: Mutant 1650 | -10/Materials | Identified exit to Subcaves 1673 | -10/Materials | Learned location of 2 exits from Materials 1686 | -10/Materials | Loaded intel: 16 trap records 1793 | -10/Materials | Learned location of 1 exit from Recycling 1932 | -10/Materials | Entered Mines 1933 | -10/Mines | Met a Derelict bent on vengeance 2031 | -10/Mines | Deemed a non-threat by the Exiles lab entrance 2031 | -10/Mines | Discovered new exit (range 5) 2036 | -10/Mines | Entered Exiles 2068 | -10/Exiles | Met 8R-AWN 2087 | -10/Exiles | Met EX-HEX 2137 | -10/Exiles | Met EX-DEC 2153 | -10/Exiles | Met EX-BIN 2173 | -10/Exiles | Learned location of Zion (-7) 2208 | -10/Exiles | Discovered new exit (range 14) 2224 | -10/Exiles | Entered Mines 2481 | -9/Mines | Core integrity fell below 20% 2518 | -9/Mines | Received a Rocket Launcher from a helpful Derelict 2542 | -9/Mines | Build established: Scavenger-Mutant 3011 | -9/Mines | Discovered new exit (range 13) 3043 | -9/Mines | Learned 2 Materials zone layouts 3058 | -9/Mines | Entered Materials 3058 | -8/Materials | Evolved 4 slots: Propulsion x2, Utility x1, Weapon x1 3059 | -8/Materials | Identified exit to Storage 3059 | -8/Materials | Identified exit to Factory 3127 | -8/Materials | Central database locked down 3381 | -8/Materials | Garrison activated, responded to threat 3481 | -8/Materials | Build established: Tank 3526 | -8/Materials | Identified exit to Garrison 3578 | -8/Materials | Entered Garrison 3578 | -8/Garrison | Accompanied by 3 allies 3618 | -8/Garrison | Triggered checkpoint 3756 | -8/Garrison | Garrison Relay disabled 3808 | -8/Garrison | Triggered checkpoint 3881 | -8/Garrison | Lost 3 allies 3920 | -8/Garrison | Triggered checkpoint 4032 | -8/Garrison | Discovered new exit (range 11) 4043 | -8/Garrison | Installed Relay Interface Framework 4068 | -8/Garrison | Triggered checkpoint 4252 | -8/Garrison | Triggered checkpoint 4282 | -8/Garrison | Garrison Relay disabled 4313 | -8/Garrison | Triggered checkpoint 4324 | -8/Garrison | Discovered new exit (range 15) 4456 | -8/Garrison | Discovered new exit (range 33) 4456 | -8/Garrison | Discovered new exit (range 64) 4456 | -8/Garrison | Discovered new exit (range 50) 4505 | -8/Garrison | Entered Materials 4593 | -8/Materials | Identified exit to Garrison 4649 | -8/Materials | Garrison activated, responded to threat 4662 | -8/Materials | Entered Garrison 4662 | -8/Garrison | Accompanied by 2 allies 4688 | -8/Garrison | Triggered checkpoint 4716 | -8/Garrison | Garrison Relay disabled 4772 | -8/Garrison | Triggered checkpoint 4772 | -8/Garrison | Triggered checkpoint 4805 | -8/Garrison | Destroyed 8 combat bots 4824 | -8/Garrison | Triggered checkpoint 4834 | -8/Garrison | Triggered checkpoint 4878 | -8/Garrison | Lost 8 parts (1p3n1u3w) 4890 | -8/Garrison | Destroyed 7 combat bots 5187 | -8/Garrison | Discovered exit to Factory (range 5) 5300 | -8/Garrison | Triggered checkpoint 5328 | -8/Garrison | Garrison Relay disabled 5355 | -8/Garrison | Build established: Bothacker-Gunner 5395 | -8/Garrison | Discovered exit to Factory (range 10) 5509 | -8/Garrison | Discovered exit to Factory (range 10) 5538 | -8/Garrison | Expanded RIF knowledge: Signal Jamming 5567 | -8/Garrison | P-60 Hacker assimilated allied Defender 3a 5581 | -8/Garrison | System corruption reached 10% 5612 | -8/Garrison | Triggered checkpoint 5976 | -8/Garrison | Entered Factory 5976 | -7/Factory | Accompanied by 3 allies 5976 | -7/Factory | Evolved 2 slots: Utility x2 6004 | -7/Factory | Build established: Bothacker-Tank 6776 | -7/Factory | First assault squad dispatched 6807 | -7/Factory | Discovered new exit (range 9) 6880 | -7/Factory | Identified exit to Garrison 6896 | -7/Factory | Entered Garrison 6896 | -7/Garrison | Accompanied by 3 allies 6908 | -7/Garrison | Triggered checkpoint 7093 | -7/Garrison | Garrison Relay disabled 7159 | -7/Garrison | Triggered checkpoint 7190 | -7/Garrison | Triggered checkpoint 7268 | -7/Garrison | Triggered checkpoint 7288 | -7/Garrison | Triggered checkpoint 7315 | -7/Garrison | Heavy support dispatched to Factory 7327 | -7/Garrison | Discovered new exit (range 13) 7340 | -7/Garrison | Triggered checkpoint 7424 | -7/Garrison | Garrison Relay disabled 7565 | -7/Garrison | Heavy support dispatched to Factory 7648 | -7/Garrison | H-XX Assembler disabled 7655 | -7/Garrison | Lost 3 allies 7681 | -7/Garrison | Triggered checkpoint 7683 | -7/Garrison | Build established: Bothacker-Gunner 8049 | -7/Garrison | Triggered checkpoint 8080 | -7/Garrison | Triggered checkpoint 8108 | -7/Garrison | Discovered new exit (range 14) 8219 | -7/Garrison | Garrison Relay disabled 8244 | -7/Garrison | Build established: Bothacker-Tank 8354 | -7/Garrison | Learned Factory security intel 8425 | -7/Garrison | Discovered new exit (range 12) 8446 | -7/Garrison | Expanded RIF knowledge: Zone Cloak 8580 | -7/Garrison | Expanded RIF knowledge: Alert ID Control 8636 | -7/Garrison | Entered Factory 8636 | -6/Factory | Accompanied by 3 allies 8636 | -6/Factory | Evolved 2 slots: Utility x2 8855 | -6/Factory | Lost 3 allies 8903 | -6/Factory | Build established: Botlord-Tank 9183 | -6/Factory | Repaired Imp. Remote Datajack+ 9260 | -6/Factory | Discovered new exit (range 11) 9429 | -6/Factory | Fabricated Plasma Cutter? 9769 | -6/Factory | Discovered new exit (range 16) 9999 | -6/Factory | Garrison activated, responded to threat 10132 | -6/Factory | Identified exit to Garrison 10195 | -6/Factory | Garrison activated, responded to threat 10196 | -6/Factory | P-60 Hacker assimilated allied Guardian 5c 10199 | -6/Factory | P-60 Hacker assimilated allied Guardian 5e 10211 | -6/Factory | Entered Garrison 10211 | -6/Garrison | Accompanied by 2 allies 10240 | -6/Garrison | Expanded RIF knowledge: Autoassimilate 10440 | -6/Garrison | Spotted B-75 Beast 10449 | -6/Garrison | Triggered checkpoint 10882 | -6/Garrison | Destroyed B-75 Beast 10989 | -6/Garrison | Triggered checkpoint 11006 | -6/Garrison | Triggered checkpoint 11114 | -6/Garrison | Discovered new exit (range 15) 11135 | -6/Garrison | Triggered checkpoint 11229 | -6/Garrison | Discovered new exit (range 5) 11328 | -6/Garrison | Found embedded Infiltrators 11339 | -6/Garrison | Triggered checkpoint 11483 | -6/Garrison | Discovered new exit (range 79) 11483 | -6/Garrison | Discovered new exit (range 22) 11483 | -6/Garrison | Discovered new exit (range 68) 11483 | -6/Garrison | Discovered new exit (range 35) 11620 | -6/Garrison | Garrison Relay disabled 11630 | -6/Garrison | Triggered checkpoint 11675 | -6/Garrison | Lost 4 allies 11736 | -6/Garrison | Expanded RIF knowledge: Structural Interface 11972 | -6/Garrison | Entered Factory 11972 | -6/Factory | Accompanied by 4 allies 12318 | -6/Factory | Discovered new exit (range 4) 12405 | -6/Factory | Identified exit to Lower Caves 12698 | -6/Factory | Lost 3 allies 12819 | -6/Factory | Discovered exit to Lower Caves (range 5) 13150 | -6/Factory | Discovered new exit (range 5) 13162 | -6/Factory | System corruption reached 10% 13652 | -6/Factory | Found Prototype Launcher 13664 | -6/Factory | Identified Rocket Array 13799 | -6/Factory | Identified exit to Garrison 13799 | -6/Factory | Entered Garrison 13832 | -6/Garrison | Expanded RIF knowledge: Robot Detection 13843 | -6/Garrison | Garrison Relay disabled 13857 | -6/Garrison | Triggered checkpoint 13920 | -6/Garrison | Triggered checkpoint 14036 | -6/Garrison | Build established: Botlord-Gunner 14274 | -6/Garrison | Discovered new exit (range 10) 14285 | -6/Garrison | Triggered checkpoint 14338 | -6/Garrison | Garrison Relay disabled 14355 | -6/Garrison | Garrison Relay disabled 14403 | -6/Garrison | Triggered checkpoint 14454 | -6/Garrison | Rewired Striker 14458 | -6/Garrison | Rewired Striker 14682 | -6/Garrison | Triggered checkpoint 14682 | -6/Garrison | Triggered checkpoint 14685 | -6/Garrison | Triggered checkpoint 14722 | -6/Garrison | Destroyed 7 combat bots 14741 | -6/Garrison | Discovered new exit (range 15) 14834 | -6/Garrison | Lost 7 allies 14989 | -6/Garrison | Triggered checkpoint 15003 | -6/Garrison | Garrison Relay disabled 15073 | -6/Garrison | Triggered checkpoint 15225 | -6/Garrison | Triggered checkpoint 15241 | -6/Garrison | Garrison Relay disabled 15283 | -6/Garrison | Discovered new exit (range 12) 15292 | -6/Garrison | Spotted B-75 Beast 15312 | -6/Garrison | Assimilated Beast 5a with formatsys_high 15328 | -6/Garrison | Rewired B-86 Titan 15342 | -6/Garrison | Lost 3 allies 15490 | -6/Garrison | Entered Factory 15490 | -5/Factory | Accompanied by 2 allies 15490 | -5/Factory | Evolved 2 slots: Power x1, Propulsion x1 15663 | -5/Factory | Identified exit to Garrison 15678 | -5/Factory | Entered Garrison 15678 | -5/Garrison | Accompanied by 6 allies 15711 | -5/Garrison | Spotted B-75 Beast 15725 | -5/Garrison | Triggered checkpoint 15728 | -5/Garrison | Triggered checkpoint 15777 | -5/Garrison | Lost 4 allies 15791 | -5/Garrison | Destroyed 7 combat bots 15832 | -5/Garrison | Warlord forces raided the area 15928 | -5/Garrison | Discovered new exit (range 12) 15933 | -5/Garrison | Triggered checkpoint 15938 | -5/Garrison | Triggered checkpoint 15965 | -5/Garrison | Triggered checkpoint 15973 | -5/Garrison | Garrison Relay disabled 16098 | -5/Garrison | Triggered checkpoint 16244 | -5/Garrison | Triggered checkpoint 16316 | -5/Garrison | Triggered checkpoint 16324 | -5/Garrison | Expanded RIF knowledge: Hotswap 16335 | -5/Garrison | Garrison Relay disabled 16518 | -5/Garrison | Triggered checkpoint 16518 | -5/Garrison | Garrison Relay disabled 16553 | -5/Garrison | Lost 3 allies 16591 | -5/Garrison | Discovered new exit (range 15) 16756 | -5/Garrison | Triggered checkpoint 16825 | -5/Garrison | Garrison Relay disabled 16835 | -5/Garrison | Garrison Relay disabled 16872 | -5/Garrison | Spotted Executioner 16872 | -5/Garrison | Spotted Executioner 16879 | -5/Garrison | Destroyed Executioner 16889 | -5/Garrison | Destroyed Executioner 16900 | -5/Garrison | Found Prototype Processor 16900 | -5/Garrison | Identified Exp. Core Analyzer 16907 | -5/Garrison | Found Prototype Device 16907 | -5/Garrison | Identified Adv. Kinecellerator 16922 | -5/Garrison | Found Exp. Targeting Computer 16940 | -5/Garrison | Rewired Striker 16946 | -5/Garrison | Rewired Striker 17072 | -5/Garrison | Lost 4 allies 17140 | -5/Garrison | Triggered checkpoint 17211 | -5/Garrison | Garrison Relay disabled 17230 | -5/Garrison | Discovered new exit (range 8) 17279 | -5/Garrison | Entered Factory 17279 | -5/Factory | Accompanied by 7 allies 17367 | -5/Factory | Garrison activated, responded to threat 17409 | -5/Factory | Identified exit to Garrison 17544 | -5/Factory | Entered Garrison 17544 | -5/Garrison | Accompanied by 10 allies 17556 | -5/Garrison | Expanded RIF knowledge: Autooverride 17612 | -5/Garrison | Triggered checkpoint 17634 | -5/Garrison | Garrison Relay disabled 17655 | -5/Garrison | Garrison Relay disabled 17755 | -5/Garrison | Triggered checkpoint 17846 | -5/Garrison | Triggered checkpoint 17857 | -5/Garrison | Triggered checkpoint 17936 | -5/Garrison | Triggered checkpoint 17967 | -5/Garrison | Garrison Relay disabled 17993 | -5/Garrison | Garrison Relay disabled 18015 | -5/Garrison | Discovered new exit (range 5) 18176 | -5/Garrison | Discovered new exit (range 16) 18190 | -5/Garrison | Triggered checkpoint 18218 | -5/Garrison | Garrison Relay disabled 18433 | -5/Garrison | Discovered new exit (range 14) 18452 | -5/Garrison | Found embedded Infiltrators 18466 | -5/Garrison | Triggered checkpoint 18525 | -5/Garrison | Garrison Relay disabled 18535 | -5/Garrison | Garrison Relay disabled 18556 | -5/Garrison | Triggered checkpoint 18850 | -5/Garrison | Entered Factory 18850 | -4/Factory | Accompanied by 22 allies 18850 | -4/Factory | Evolved 2 slots: Utility x2 18865 | -4/Factory | Identified exit to Garrison 18929 | -4/Factory | Entered Garrison 18929 | -4/Garrison | Accompanied by 23 allies 18950 | -4/Garrison | Garrison Relay disabled 18961 | -4/Garrison | Triggered checkpoint 19016 | -4/Garrison | Build established: Botlord-Mutant 19137 | -4/Garrison | Spotted B-86 Titan 19139 | -4/Garrison | Triggered checkpoint 19144 | -4/Garrison | Assimilated Titan 7a with formatsys_high 19147 | -4/Garrison | Triggered checkpoint 19153 | -4/Garrison | Triggered checkpoint 19153 | -4/Garrison | Triggered checkpoint 19224 | -4/Garrison | Triggered checkpoint 19246 | -4/Garrison | Discovered new exit (range 14) 19271 | -4/Garrison | Discovered new exit (range 25) 19271 | -4/Garrison | Discovered new exit (range 42) 19271 | -4/Garrison | Discovered new exit (range 88) 19298 | -4/Garrison | Garrison Relay disabled 19335 | -4/Garrison | Triggered checkpoint 19344 | -4/Garrison | Triggered checkpoint 19366 | -4/Garrison | Build established: Botlord-Gunner 19623 | -4/Garrison | Triggered checkpoint 19634 | -4/Garrison | Expanded RIF knowledge: Coupler Efficiency 19654 | -4/Garrison | Garrison Relay disabled 19759 | -4/Garrison | Spotted B-86 Titan 19779 | -4/Garrison | Rewired B-75 Beast 19780 | -4/Garrison | Rewired B-86 Titan 19785 | -4/Garrison | Assimilated Titan 7c with formatsys_high 19935 | -4/Garrison | Triggered checkpoint 19980 | -4/Garrison | Entered Research 19980 | -3/Research | Accompanied by 25 allies 19980 | -3/Research | Evolved 2 slots: Utility x2 20042 | -3/Research | Lost 4 allies 20179 | -3/Research | Unchained authorized (DW-4LL) 20217 | -3/Research | Spotted B-86 Titan 20230 | -3/Research | First assault squad dispatched 20239 | -3/Research | Allies destroyed B-86 Titan 20281 | -3/Research | Build established: Botlord-Mutant 20394 | -3/Research | Lost 3 allies 20459 | -3/Research | Lost 4 allies 20479 | -3/Research | Spotted B-86 Titan 20499 | -3/Research | Allies destroyed B-86 Titan 20524 | -3/Research | Lost 3 allies 20567 | -3/Research | DW-4LL burst out of a wall 20590 | -3/Research | Destroyed DW-4LL 20597 | -3/Research | Build established: Botlord-Gunner 20652 | -3/Research | Discovered new exit (range 10) 20657 | -3/Research | Lost 13 allies 20768 | -3/Research | Garrison activated, responded to threat 20788 | -3/Research | Identified exit to Garrison 20808 | -3/Research | Entered Garrison 20808 | -3/Garrison | Accompanied by 8 allies 20815 | -3/Garrison | Lost 3 allies 20844 | -3/Garrison | Garrison Relay disabled 20858 | -3/Garrison | Triggered checkpoint 20910 | -3/Garrison | Triggered checkpoint 20920 | -3/Garrison | Triggered checkpoint 20956 | -3/Garrison | Triggered checkpoint 20961 | -3/Garrison | Triggered checkpoint 20974 | -3/Garrison | P-80 Master assimilated allied Processor 8a 21022 | -3/Garrison | Lost 8 allies 21041 | -3/Garrison | Destroyed 9 combat bots 21111 | -3/Garrison | Discovered new exit (range 3) 21127 | -3/Garrison | Triggered checkpoint 21154 | -3/Garrison | Garrison Relay disabled 21332 | -3/Garrison | Discovered new exit (range 12) 21347 | -3/Garrison | Expanded RIF knowledge: Patrol Navigation 21426 | -3/Garrison | Triggered checkpoint 21449 | -3/Garrison | Garrison Relay disabled 21538 | -3/Garrison | Garrison Relay disabled 21634 | -3/Garrison | Discovered new exit (range 13) 21676 | -3/Garrison | Triggered checkpoint 21716 | -3/Garrison | Learned Research security intel 21719 | -3/Garrison | Garrison Relay disabled 21790 | -3/Garrison | Triggered checkpoint 22247 | -3/Garrison | Garrison Relay disabled 22294 | -3/Garrison | Entered Research 22294 | -2/Research | Accompanied by 26 allies 22294 | -2/Research | Evolved 2 slots: Propulsion x1, Utility x1 22544 | -2/Research | First assault squad dispatched 22579 | -2/Research | Discovered new exit (range 5) 22669 | -2/Research | Entered Quarantine 22669 | -2/Quarantine | Accompanied by 28 allies 22684 | -2/Quarantine | Identified exit to Garrison 22781 | -2/Quarantine | Entered Garrison 22781 | -2/Garrison | Accompanied by 28 allies 22781 | -2/Garrison | 1 ally did not survive the journey 22807 | -2/Garrison | Triggered checkpoint 22844 | -2/Garrison | Lost 3 allies 22947 | -2/Garrison | Triggered checkpoint 22955 | -2/Garrison | Expanded RIF knowledge: Zone Cloak 22978 | -2/Garrison | Garrison Relay disabled 22979 | -2/Garrison | Triggered checkpoint 23045 | -2/Garrison | Spotted B-90 Cyclops 23049 | -2/Garrison | Assimilated Cyclops 9a with formatsys_high 23057 | -2/Garrison | Triggered checkpoint 23133 | -2/Garrison | Lost 5 allies 23166 | -2/Garrison | Discovered new exit (range 14) 23171 | -2/Garrison | Spotted B-86 Titan 23172 | -2/Garrison | Assimilated Titan 9a with formatsys_high 23189 | -2/Garrison | Rewired B-90 Cyclops 23233 | -2/Garrison | Triggered checkpoint 23285 | -2/Garrison | Garrison Relay disabled 23315 | -2/Garrison | Triggered checkpoint 23446 | -2/Garrison | Triggered checkpoint 23466 | -2/Garrison | Build established: Commander-Gunner 23484 | -2/Garrison | Garrison Relay disabled 23514 | -2/Garrison | Lost 3 allies 23570 | -2/Garrison | Discovered new exit (range 22) 23580 | -2/Garrison | Triggered checkpoint 23695 | -2/Garrison | Triggered checkpoint 23733 | -2/Garrison | Triggered checkpoint 23742 | -2/Garrison | Spotted Striker 23742 | -2/Garrison | Spotted Striker 23757 | -2/Garrison | Allies destroyed Striker 23763 | -2/Garrison | Rewired Striker 23778 | -2/Garrison | Destroyed Striker 23810 | -2/Garrison | Garrison Relay disabled 23834 | -2/Garrison | Discovered new exit (range 8) 24073 | -2/Garrison | Entered Section 7 24073 | -2/Section 7 | Accompanied by 30 allies 24089 | -2/Section 7 | Found Alien Artifact 24089 | -2/Section 7 | Identified Spacefold Activator 24123 | -2/Section 7 | Garrison activated, responded to threat 24160 | -2/Section 7 | Spotted B-90 Cyclops 24164 | -2/Section 7 | Identified exit to Garrison 24178 | -2/Section 7 | Allies destroyed B-90 Cyclops 24198 | -2/Section 7 | Entered Garrison 24198 | -2/Garrison | Accompanied by 26 allies 24205 | -2/Garrison | Lost 7 allies 24226 | -2/Garrison | Triggered checkpoint 24309 | -2/Garrison | Spotted B-90 Cyclops 24310 | -2/Garrison | Autoassimilated Cyclops 9c with RIF 24340 | -2/Garrison | Triggered checkpoint 24376 | -2/Garrison | Lost 9 allies 24382 | -2/Garrison | Triggered checkpoint 24422 | -2/Garrison | Triggered checkpoint 24455 | -2/Garrison | Expanded RIF knowledge: Autooverride 24476 | -2/Garrison | Triggered checkpoint 24520 | -2/Garrison | Triggered checkpoint 24549 | -2/Garrison | Garrison Relay disabled 24649 | -2/Garrison | Discovered new exit (range 14) 24747 | -2/Garrison | Discovered new exit (range 19) 24747 | -2/Garrison | Discovered new exit (range 44) 24747 | -2/Garrison | Discovered new exit (range 33) 24783 | -2/Garrison | Triggered checkpoint 24796 | -2/Garrison | Garrison Relay disabled 24866 | -2/Garrison | Build established: Botlord-Tank 24914 | -2/Garrison | Triggered checkpoint 25144 | -2/Garrison | Entered Access 25144 | -1/Access | Accompanied by 21 allies 25144 | -1/Access | Evolved 2 slots: Utility x1, Weapon x1 25390 | -1/Access | P-80 Master assimilated allied BE-7XC(b) 25394 | -1/Access | First assault squad dispatched 25586 | -1/Access | Lost 8 allies 25823 | -1/Access | Discovered new exit (range 8) 25899 | -1/Access | Entered Command 25899 | -1/Command | Accompanied by 13 allies 25908 | -1/Command | Spotted B-99 Colossus 25927 | -1/Command | Allies destroyed B-99 Colossus 26090 | -1/Command | Lost 3 allies 26149 | -1/Command | First assault squad dispatched 26508 | -1/Command | Lost 3 allies 26744 | -1/Command | Found Exp. Core Analyzer 26799 | -1/Command | Lost 4 allies 27152 | -1/Command | Spotted Combat Programmer 27404 | -1/Command | Met MAIN.C 27414 | -1/Command | 0b10 Conduit disabled 27432 | -1/Command | Destroyed MAIN.C Shell 27435 | -1/Command | MAIN.C activated Command garrisons 27438 | -1/Command | Surrendered to MAIN.C 27438 | -1/Command | Loaded intel: 61 machine locations 27438 | -1/Command | Loaded intel: 99 trap records 27438 | -1/Command | Identified exit to Surface 27438 | -1/Command | Discovered exit to Surface (range 80) 27438 | -1/Command | Discovered exit to Surface (range 44) 27459 | -1/Command | Build established: Scavenger-Tank 27463 | -1/Command | Lost 3 parts (1u2w) 27539 | -1/Command | Found Prototype Reactor 27539 | -1/Command | Identified Zero-point Reactor 27543 | -1/Command | Found Zero-point Reactor 27548 | -1/Command | Found Prototype Device 27548 | -1/Command | Identified Exp. Transmission Jammer 27551 | -1/Command | Found Prototype Device 27551 | -1/Command | Identified Exp. Cloaking Device 27555 | -1/Command | Found Prototype Device 27555 | -1/Command | Identified Exp. System Purifier 27558 | -1/Command | Found Prototype Device 27558 | -1/Command | Identified Exp. EM Shield 27586 | -1/Command | Found Prototype Ballistic Gun 27602 | -1/Command | MAIN.C activated Command garrisons 27642 | -1/Command | Unknown forces attacked Command 27642 | -1/Command | Spotted EQ-000 27642 | -1/Command | Spotted EQ-005 27643 | -1/Command | Spotted EQ-003 27646 | -1/Command | Spotted EQ-004 27655 | -1/Command | Destroyed EQ-003 27667 | -1/Command | Destroyed EQ-000 27671 | -1/Command | Spotted EQ-002 27677 | -1/Command | Spotted EQ-001 27688 | -1/Command | Destroyed EQ-001 27694 | -1/Command | Spotted EQ-009 27699 | -1/Command | Destroyed EQ-009 27703 | -1/Command | Spotted EQ-012 27731 | -1/Command | Spotted EQ-033 27731 | -1/Command | Spotted EQ-018 27735 | -1/Command | Destroyed EQ-033 27745 | -1/Command | Destroyed EQ-018 27761 | -1/Command | Spotted EQ-023 27775 | -1/Command | Destroyed EQ-023 27843 | -1/Command | Spotted EQ-038 27853 | -1/Command | Core integrity fell below 50% 27858 | -1/Command | Destroyed EQ-038 27869 | -1/Command | Spotted EQ-027 27869 | -1/Command | Spotted EQ-034 27869 | -1/Command | Spotted EQ-019 27870 | -1/Command | Spotted EQ-028 27879 | -1/Command | Destroyed EQ-034 27894 | -1/Command | Destroyed EQ-027 27901 | -1/Command | Destroyed EQ-028 27907 | -1/Command | Spotted EQ-057 27948 | -1/Command | Spotted EQ-063 27948 | -1/Command | Spotted EQ-061 27948 | -1/Command | Spotted EQ-062 27948 | -1/Command | Spotted EQ-060 27952 | -1/Command | Destroyed EQ-062 27970 | -1/Command | Identified Hyp. Multirail 27980 | -1/Command | Destroyed EQ-057 27991 | -1/Command | Lost 3 allies 27999 | -1/Command | Lost 4 parts (3u1w) 28001 | -1/Command | Found Prototype Ballistic Gun 28011 | -1/Command | Spotted EQ-075 28061 | -1/Command | Spotted EQ-081 28076 | -1/Command | Destroyed EQ-081 28082 | -1/Command | All MAIN.C guards destroyed 28093 | -1/Command | Spotted EQ-102 28130 | -1/Command | Destroyed EQ-102 28149 | -1/Command | Spotted EQ-073 28157 | -1/Command | Spotted EQ-025 28158 | -1/Command | Destroyed EQ-073 28164 | -1/Command | Spotted EQ-099 28165 | -1/Command | Spotted EQ-097 28177 | -1/Command | Spotted EQ-110 28184 | -1/Command | Identified Multirail 28199 | -1/Command | Spotted EQ-109 28200 | -1/Command | Spotted EQ-120 28202 | -1/Command | Spotted EQ-136 28202 | -1/Command | Destroyed EQ-097 28203 | -1/Command | Spotted EQ-066 28206 | -1/Command | Destroyed EQ-110 28213 | -1/Command | Spotted EQ-135 28215 | -1/Command | Core integrity fell below 20% 28216 | -1/Command | Lost 5 parts (1p1u3w) 28218 | -1/Command | System corruption reached 10% 28228 | -1/Command | Spotted EQ-122 28230 | -1/Command | Spotted EQ-088 28230 | -1/Command | Destroyed EQ-120 28244 | -1/Command | Destroyed by EQ-109 with Enhanced Gamma Rifle Last Messages --------------- 28235_ Exp. Biometal Leg broken. 28235_ Overheating: Short circuit. 28236_ MAIN.C: "Ha ha ha." 28236_ MAIN.C destroyed. 28237_ Adv. Heat Sink destroyed. 28238_ HERF Cannon destroyed. 28238_ Critical hit (Destroy). 28238_ Centrium Leg destroyed. 28238_ Penetrated by Slug. 28238_ Hyp. Multirail destroyed. 28239_ Overheating: System interference. 28239_ Exp. Core Analyzer temporarily disabled. 28240_ Centrium Medium Armor Plating destroyed. 28240_ Penetrated by Slug. 28241_ Centrium Leg destroyed. 28241_ Enh. Hardcell Cannon destroyed. 28241_ Broken Exp. Biometal Leg destroyed. 28241_ Lyr. Light Armor Plating destroyed. 28241_ Imp. Focal Shield destroyed. 28243_ Penetrated by Slug. Map ----- +----------------------------------------------------+ | + #????????????????????????????????#?#?#?? | | # #????????????????????????????????#?#?#?? | | ##+###????????????????????????????????#?#?#?? | | #! #????????????????????????????????#?#?#?? | | #### # #????????????????????????????????#?#?#?? | | #??# # #????????????????????????????????#?#?#?? | | #??# + #????????????????????????????????#?#?#?? | | #??# # #????????????????????????????????#?#?#?? | | #??#=# #????????????????????????????????#?#?#?? | | #??#%# #????????????????????????????????#?#?#?? | | #?##%######????????????????????????????????#?#?#?? | | ###"+###? ##???????????????????????????????#?#?#?? | | =]! ## ##??????????????????????????????#?#?#?? | | *! % #??????????????????????????????#?#?#?? | | %%#% ##?????????????????????????????#?#?#?? | | % #?????????????????????????????#?#?#?? | | [# # ??????????????????????????????#?#?#?? | | =!%# #??????????????????????????????#?#?#?? | | ! *%=% # ###########################????#?#?#?? | | ###"%[[# # ##?????????????????????????#????#?#?#?? | | % ! ##?#######################?#????#?#?#?? | | ## ##?#"""""" %############## | | # ###?#"" #?#??????????? | | ##?#""""" [ %############## | | % #?#"""" " [ % % !%!% % | | # #?#" " @ = % !!%%% | | # ##?# % %%!% | | % #?#" [ ############## | | ###?# #?#??????????? | | # ##?# " ############## | | # #"##?# #?#????#?#?#?? | | % % #?#" Q% $ #?#????#?#?#?? | | % "###?# ! Q #?#????#?#?#?? | | % % " ##?#% Q Q #?#????#?#?#?? | | % % ! "###?# %% Q #?#????#?#?#?? | | % % % " ####= % Q % % #?#????#?#?#?? | | ! % %[% % %#?#????#?#?#?? | | ! %[ % % #?#????#?#?#?? | | %! ! % #?#????#?#?#?? | | %%""" /""#### % % %% % #?#????#?#?#?? | | ##%%"#" ###?# % % %% #?#????#?#?#?? | | ## ### * #?#?# %% %% % #?#????#?#?#?? | | ## ### #?#?#######################?#????#?#?#?? | | " == ## #?#?????????????????????????#????#?#?#?? | | " [%=##[ #?###########################????#?#?#?? | | #% ## #????????????????????????????????#?#?#?? | | " ## * #????????????????????????????????#?#?#?? | | "# %#######????????????????????????????????#?#?#?? | | ##% "######????????????????????????????????#?#?#?? | | ##% # * #????????????????????????????????#?#?#?? | +----------------------------------------------------+ Best States ------------- Heat Dissipation 97 Energy Generation 61 Energy Capacity 1090 Matter Stores 550 Matter Capacity 550 Sight Range 23 Robot Scan Range 16 Terrain Scan Density 10 Jamming Range 22 Armor Coverage 450 Resistance: KI 25 Resistance: TH 30 Resistance: EM 75 Core Shielding 30 Point Defense Rating 160 Phase Shifting 15 Evasion (%) 69 Targeting Accuracy 12 Melee Accuracy 6 Core Analysis 8 Recoil Reduction 4 Matter Filtering 50 Particle Charging 15 Kinecelleration 50 Force Boost 20 Offensive Hacking 22 Defensive Hacking 14 Relay Coupler Types 7 Relay Coupler Value 197 Item Schematics ----------------- Lrg. Storage Unit | -10/Materials | Hacked Hcp. Storage Unit | -7/Factory | Hacked Plasma Cutter | -7/Factory | Hacked Huge Storage Unit | -7/Factory | Hacked Imp. Remote Datajack | -6/Factory | Scanalyzed Arm. Huge Wheel | -6/Factory | Scanalyzed Gravity Neutralizer | -2/Garrison | Archive Robot Schematics ------------------ L-31 Rogue | -7/Factory | Hacked Fabricated ------------ Plasma Cutter | x2 | -6/Factory Repaired ---------- Imp. Remote Datajack | 30% | -6/Factory Studied --------- Aluminum Leg | -8/Materials | Hacked Carbon-fiber Leg | -7/Factory | Hacked Imp. Remote Datajack | -6/Factory | Hacked Remote Datajack | -6/Factory | Hacked Hvy. Missile Launcher | -6/Factory | Hacked Arm. Huge Wheel | -6/Factory | Hacked Flak Gun | -6/Factory | Hacked Alien Tech Used ----------------- Spacefold Activator Achievements -------------- Prodigal Son RIFT Wizard Challenges ------------ None Game ------ Seed DisassembledSchematicCloak Manual? 0 Play Time 06:38:29 Cumulative 549.4 hours Start 2026.02.17 @ 20:50:15 End 2026.02.21 @ 18:00:12 Sessions 9 Manual Loads 0 Difficulty Rogue Special Mode None Game No. 215 Rogue 142 Adventurer 68 Explorer 5 Win Type - Total 41 Types 22/3/4/5/3/0/1/1/0/2 Lore% 86 Gallery% 77 Achievement% 67 Wizard Run 0 Options --------- Layout 0 ASCII 0 Keyboard 0 Movement Numpad Keybinds 0 Fullscreen 1 Font 24/Smallcaps Map View 76x50 Zoom Use 0% Tactical HUD 1 Map Filters NONE Filters NONE Steam 1 RUN: efaa9be5-d125-4622-af8d-fae57d2c5af0